{"text_format":"1","workbook":"xlsx","n_sheets":6,"sheets":["Instructions","Renseignements à compléter","Année 1 - à compléter","Année 2 - à compléter","Calculs","Feuil1"],"not_rendered":{"charts":0,"images":5,"macros":0,"external_links":0,"defined_names":39,"comments":4,"pivot_tables":0},"unopened":[],"bounds":{"document_bytes":16777216,"sheet_cells":100000,"rows_first":2000,"rows_last":500,"rows_between":2000,"halvings":0,"cell_chars":16384,"cell_head_chars":4096},"cells_cut":0,"cells_raw":0,"read":"whole","date_system":"1900"}

{"sheet":"Instructions","index":0,"n_rows":161,"n_cols":5,"rows_kept":161,"cut":false,"hidden":false,"merged":[[161,1,161,2],[160,1,160,2],[1,2,1,4],[99,1,99,2],[2,1,2,2],[3,1,3,2],[77,0,77,3],[86,1,86,2],[84,1,84,2]]}
[null,null,null,null,"Financement des crédits d'impôt remboursables relatifs :"]
[null,null," ̶  à l'économie du savoir\n ̶  aux entreprises de la presse d'information écrite"]
[null,"DEMANDE DE GARANTIE / PRÊT"]
[null,"Instructions"]
[]
[]
[]
[]
[]
[]
[]
[]
[]
[]
[]
[]
[]
[]
[]
[]
[]
[]
[]
[]
[]
[]
[]
[]
[]
[]
[]
[]
[]
[]
[]
[]
[]
[]
[]
[]
[]
[]
[]
[]
[]
[]
[]
[]
[]
[]
[]
[]
[]
[]
[]
[]
[]
[]
[]
[]
[]
[]
[]
[]
[]
[]
[]
[]
[]
[]
[]
[]
[]
[]
[]
[]
[]
[]
[]
[]
[]
[]
[]
[]
[null,"Centres d'affaires d'Investissement Québec"]
[]
[]
[]
[]
[]
[]
[]
[]
[]
[]
[]
[]
[]
[]
[]
[]
[]
[]
[]
[]
[]
[]
[]
[]
[]
[]
[]
[]
[]
[]
[]
[]
[]
[]
[]
[]
[]
[]
[]
[]
[]
[]
[]
[]
[]
[]
[]
[]
[]
[]
[]
[]
[]
[]
[]
[]
[]
[]
[]
[]
[]
[]
[]
[]
[]
[]
[]
[]
[]
[]
[]
[]
[]
[]
[]
[null,"Numéro sans frais au Québec : 1 844 474 6367"]

{"sheet":"Renseignements à compléter","index":1,"n_rows":170,"n_cols":59,"rows_kept":170,"cut":false,"hidden":false,"merged":[[167,16,168,16],[1,8,1,16],[67,1,67,9],[50,1,50,5],[50,6,50,15],[120,1,120,2],[120,3,120,5],[120,6,120,8],[120,9,120,10],[120,11,120,12],[120,13,120,15],[118,1,118,2],[118,3,118,5],[118,6,118,8],[118,9,118,10],[118,11,118,12],[118,13,118,15],[119,1,119,2],[119,3,119,5],[119,6,119,8],[119,9,119,10],[119,11,119,12],[119,13,119,15],[17,6,17,8],[40,6,40,15],[94,2,94,14],[41,6,41,15],[54,1,54,5],[39,6,39,15],[30,5,30,15],[31,5,31,15],[32,1,32,5],[34,1,34,5],[38,1,38,5],[33,9,33,15],[35,11,35,15],[36,11,36,15],[35,3,35,7],[37,11,37,15],[99,2,99,13],[58,13,58,15],[43,6,43,8],[57,6,57,8],[59,0,59,16],[58,6,58,8],[57,13,57,15],[47,1,47,16],[123,1,123,2],[92,2,93,14],[121,6,121,8],[123,6,123,8],[121,3,121,5],[122,3,122,5],[123,3,123,5],[114,5,114,15],[103,1,103,15],[63,1,63,9],[60,1,60,9],[87,2,87,9],[43,13,43,15],[54,6,54,15],[74,11,74,13],[122,6,122,8],[159,12,160,13],[79,4,79,8],[79,12,79,15],[74,14,74,15],[77,10,77,15],[70,1,70,16],[75,4,75,10],[72,6,72,15],[74,4,74,10],[121,1,121,2],[122,1,122,2],[122,13,122,15],[123,13,123,15],[150,8,150,9],[152,8,152,9],[154,8,154,9],[150,6,150,7],[121,11,121,12],[122,11,122,12],[123,11,123,12],[80,12,80,15],[151,10,152,11],[100,7,100,9],[149,14,150,15],[164,1,164,5],[83,1,83,15],[0,0,0,2],[2,0,2,16],[3,0,3,16],[29,5,29,15],[26,5,26,15],[27,5,27,15],[15,11,15,13],[25,5,25,15],[17,11,17,13],[4,1,4,7],[15,4,15,5],[22,7,22,15],[23,7,23,15],[20,1,20,16],[4,11,4,12],[8,1,8,5],[11,2,11,14],[15,6,15,8],[16,6,16,8],[13,10,13,14],[16,11,16,13],[0,8,0,16],[167,1,167,5],[157,10,158,11],[155,10,156,11],[163,10,164,11],[155,14,156,15],[167,12,168,13],[165,10,166,11],[163,1,163,5],[155,1,155,5],[162,1,162,5],[168,6,168,7],[158,6,158,7],[160,6,160,7],[162,6,162,7],[164,6,164,7],[166,6,166,7],[161,6,161,9],[163,6,163,9],[156,8,156,9],[158,8,158,9],[160,8,160,9],[162,8,162,9],[164,8,164,9],[165,1,165,5],[169,14,169,15],[165,14,166,15],[163,14,164,15],[161,10,162,11],[165,12,166,13],[163,12,164,13],[95,2,95,15],[96,2,96,15],[116,1,117,2],[116,3,117,5],[116,6,117,8],[116,9,117,10],[121,9,121,10],[122,9,122,10],[155,12,156,13],[149,6,149,9],[151,6,151,9],[153,6,153,9],[161,1,161,5],[167,14,168,15],[168,1,168,5],[166,1,166,5],[167,10,168,11],[148,1,148,5],[109,4,110,5],[109,8,110,14],[158,1,158,5],[116,13,117,15],[116,11,117,12],[121,13,121,15],[109,1,109,3],[156,1,156,5],[157,14,158,15],[168,8,168,9],[165,6,165,9],[167,6,167,9],[166,8,166,9],[121,22,124,37],[151,16,152,16],[153,16,154,16],[161,16,162,16],[163,16,164,16],[165,16,166,16],[161,14,162,15],[149,10,150,11],[126,1,126,16],[161,12,162,13],[153,1,153,5],[153,12,154,13],[151,12,152,13],[153,14,154,15],[151,1,151,5],[152,1,152,5],[153,10,154,11],[149,1,149,5],[155,16,156,16],[149,12,150,13],[157,16,158,16],[159,16,160,16],[123,9,123,10],[151,14,152,15],[159,1,159,5],[149,16,150,16],[148,6,148,9],[146,1,146,16],[160,1,160,5],[157,1,157,5],[155,6,155,9],[157,6,157,9],[159,6,159,9],[157,12,158,13],[154,1,154,5],[150,1,150,5],[148,14,148,15],[148,10,148,11],[148,12,148,13],[159,10,160,11],[159,14,160,15],[152,6,152,7],[154,6,154,7],[156,6,156,7]]}
[null,null,null,null,null,null,null,null,"  Financement des crédits d'impôt remboursables relatifs :"]
[null,null,null,null,null,null,null,null," ̶  à l'économie du savoir\n– aux entreprises de la presse d'information écrite    "]
["DEMANDE DE GARANTIE / PRÊT"]
["Renseignements généraux",null,null,null,null,null,null,null,null,null,null,null,null,null,null,null,null,null,null,null,null,null,"++++++++++     (Cliquez ici pour choisir le crédit d'impôt)     ++++++++++"]
[null,{"$f":"H23","v":0},null,null,null,null,null,null,null,null,null,null,null,null,null,null,null,null,null,null,null,null,"Développement des affaires électroniques (CDAE) - Mesure fiscale permanente"]
[null,null,null,null,null,null,null,null,null,null,null,null,null,null,null,null,null,null,null,null,null,null,"Production de titres multimédias (PTM) – Mesure fiscale permanente"]
[null,null,null,null,null,null,null,null,null,null,null,null,null,null,null,null,null,null,null,null,null,null,"Services d’adaptation technologique (SAT) – Mesure fiscale permanente"]
[null,null,null,null,null,null,null,null,null,null,null,null,null,null,null,null,null,null,null,null,null,null,"Pour appuyer à la transformation numérique des entreprises de la presse d'information écrite (CTNP) - Échéance le 31 décembre 2023"]
[null,"CHOIX DU CRÉDIT D'IMPÔT À FINANCER",null,null,null,null,null,null,null,null,null,null,null,null,null,null,null,null,null,null,null,null,"Soutien à la presse d'information écrite (CPIE)"]
[null,null,null,null,null,null,null,null,null,null,null,null,null,null,null,null,null,null,null,null,null,null,"Crédit d’impôt pour la main-d’œuvre journalistique canadienne (CMOJC)"]
[null,null,null,null,null,null,null,null,null,null,null,null,null,null,null,null,null,null,null,null,null,null,{"$f":"C12","v":"++++++++++     (Cliquez ici pour choisir le crédit d'impôt)     ++++++++++"}]
[null,null,"++++++++++     (Cliquez ici pour choisir le crédit d'impôt)     ++++++++++"]
[]
[null,null,"Exercice financier visé :",null,null,null,null,"1er exercice",null,null,"2e exercice (au besoin)"]
[null,null,null,null,null,null,null,null,null,null,null,null,null,null,null,null,null,null,null,null,null,null,null,null,null,null,null,null,null,null,null,null,null,null,null,null,null,null,null,null,null,null,null,null,null,null,null,null,null,null,null,null,null,null,null,null,null,"Année 1","Année 2"]
[null,null,null,null,"Date de début :",null,null,null,null,null,null,null,null,null,null,null,null,null,null,null,null,null,null,null,null,null,null,null,null,null,null,null,null,null,null,null,null,null,null,null,null,null,null,null,null,null,null,null,null,null,null,null,null,null,"Nombre de jours dans l'exercice",null,null,{"$f":"MAX(MIN(IF(NOT(OR(ISBLANK(G17),ISBLANK(G16))),G17-G16+1,0),365),0)","v":0},{"$f":"MAX(0,(MIN(IF(NOT(OR(ISBLANK(L17),ISBLANK(L16))),L17-L16+1,0),365)))","v":0}]
[null,null,null,null,"Date de fin :"]
[null,null,null,null,null,null,"(aaaa-mm-jj)",null,null,null,null,"(aaaa-mm-jj)"]
[]
[]
["1.","IDENTIFICATION"]
[]
[null,"Raison sociale de l'entreprise requérante :"]
[null,"NEQ (numéro d'entreprise du Québec) :"]
[]
[null,"Adresse du siège social :"]
[]
[]
[]
[null,"Adresse du bureau principal :"]
[null,"(si différente de celle du "]
[null,"siège social)"]
[]
[null,"Personne avec qui Investissement Québec devra communiquer :"]
[]
[null,"Titre :",null,null,null,null,null,null,null,null,"Téléphone :"]
[null,null,null,null,null,null,null,null,null,null,"Télécopieur :"]
[null,null,null,null,null,null,null,null,null,null,"Courriel :"]
[]
[null,"Adresse (si différente de celle du siège social) :"]
[]
[]
[]
[null,"Nombre d'employés avant le projet :",null,null,null,null,null,null,null,null,null,null," après le projet :"]
[]
[]
[]
["2.","RENSEIGNEMENTS SUR L'ENTREPRISE ET LE PRÊT DEMANDÉ"]
[]
[null,"Numéro d'identification auprès "]
[null,"de l'Agence du revenu du Canada :"]
[null,null,null,null,null,null,"(voir « Déclaration de revenus des sociétés », T2)"]
[]
[null,"Numéro d'identification auprès "]
[null,"de Revenu Québec :"]
[null,null,null,null,null,null,"(voir « Déclaration de revenus des sociétés », CO-17)"]
[]
[null,"Date d'incorporation :",null,null,null,null,null,null,null,null,null,null,"Début des activités :"]
[null,null,null,null,null,null,"(aaaa-mm-jj)",null,null,null,null,null,null,"(aaaa-mm-jj)",null,null,null,null,null,null,null,null,null,null,"Oui"]
[null,null,null,null,null,null,null,null,null,null,null,null,null,null,null,null,null,null,null,null,null,null,null,null,"Non"]
[null,"L'entreprise est-elle associée (au sens de la Loi de l'impôt sur le revenu) à d'autres entreprises? (le cas échéant, annexez la liste et l'organigramme à votre demande)"]
[]
[]
[null,"L'entreprise a-t-elle des arrérages à quelque titre que ce soit envers l'Agence du revenu du Canada ou Revenu Québec? (le cas échéant, annexez les détails à votre demande)"]
[]
[]
[]
[null,"Existe-t-il un litige ou un avis d'opposition en cours auprès de l'Agence du revenu du Canada ou de Revenu Québec? (le cas échéant, annexez les détails à votre demande)"]
[]
[]
["3.","RENSEIGNEMENTS SUR L'INSTITUTION FINANCIÈRE"]
[]
[null,"Nom du prêteur (raison sociale) :"]
[]
[null,"Adresse (succursale) :",null,null,null,null,null,null,null,null,null,"    Numéro de transit :"]
[]
[]
[null,"Nom de la personne responsable du compte à l'institution financière :"]
[]
[null,"Téléphone :",null,null,null,null,null,null,null,null,"Télécopieur :",null," "]
[null,null,null,null,null,null,null,null,null,null,"Courriel :",null," "]
[]
[]
["4.","ADMISSIBILITÉ AUX CRÉDITS D'IMPÔT REMBOURSABLES"]
["  "]
[null,"4.1 Admissibilité aux crédits d'impôt remboursables CDAE, PTM, CTNP, CPIE"]
[]
[null,null,"L'entreprise détient-elle une attestation d'admissibilité d'Investissement Québec? (le cas échéant, joignez une copie de l'attestation d'admissibilité la plus récente à votre demande)"]
[]
[]
[null,"4.2 Admissibilité des crédits d'impôt remboursables SAT (Services d'adaptation technologique) "]
[]
[null,null,"La société qui exploite une entreprise admissible doit avoir un établissement au Québec et avoir conclu un contrat avec un centre collégial de transfert de technologie admissible ou avec un centre de liaison et de transfert admissible (joignez une copie du reçu délivré par l'un de ces centres admissibles)."]
[]
[null,null,"Les sociétés suivantes ne peuvent pas bénéficier du crédit d'impôt pour une année d'imposition :"]
[null,null,"       - une société exonérée d'impôt pour l'année visée;"]
[null,null,"       - une société de la Couronne ou une filiale entièrement contrôlée d'une société de la Couronne."]
[]
[null,"4.3 Admissibilité au crédit d'impôt remboursable MOJC"]
[null,null,"Seules les organismes détenant une désignation à titre d'organisation journalistique canadienne qualifiée (« OJCQ ») peuvent bénéficier du crédit d'impôt remboursable pour la MOJC."]
[null,null,"Numéro d'identification d'OJCQ"]
[null,null,"(Joignez la preuve de la désignation à titre d'OJCQ reçue de l'ARC)"]
[]
[null,"4.4 Historique des trois dernières années"]
[]
[null,"Commentaires sur l’historique d’encaissement"]
[]
[null,"Inscrire l’exercice financier le plus récent pour lequel une vérification financière a eu lieu au cours des cinq dernières années"]
[]
[null,"Exercice financier : ",null,null,null,null,null,"Conclusions : "]
[]
[null,null,null,null,"                  (aaaa-mm-jj)"]
[null,"Crédit d'impôt"]
[]
[null,"Précisez le ou les crédits :"]
[]
[null,"Année",null,"Palier",null,null,"Montant réclamé ($)",null,null,"Date de dépôt de la réclamation du crédit",null,"Montant\nreçu ($)",null,"Date"]
[]
[null,null,null,"Fédéral"]
[null,null,null,"Fédéral"]
[null,null,null,"Fédéral"]
[null,null,null,"Provincial"]
[null,null,null,"Provincial"]
[null,null,null,"Provincial"]
[]
[]
["5.","PROJET"]
[]
[null,"Brève description des activités de la société et échéancier de réalisation"]
[]
[]
[]
[]
[]
[]
[]
[]
[]
[]
[]
[]
[]
[]
[]
[]
[]
["6.","ACTIONNARIAT ET DIRECTION"]
[]
[null,"Prénom, nom et adresse",null,null,null,null,"Titre ou fonction dans l'entreprise (si l'actionnaire n'est pas à l'emploi de l'entreprise, inscrire s.o.)",null,null,null,"Expérience dans l'industrie (nbre d'années)",null,"Lien avec l'entreprise (nbre d'années)",null,"% d'actions avec droit de vote",null,"CV joint"]
[]
[null,null,null,null,null,null,"Précisez: "]
[]
[null,null,null,null,null,null,"Précisez: "]
[]
[null,null,null,null,null,null,"Précisez: "]
[]
[null,null,null,null,null,null,"Précisez: "]
[]
[null,null,null,null,null,null,"Précisez: "]
[]
[null,null,null,null,null,null,"Précisez: "]
[]
[null,null,null,null,null,null,"Précisez: "]
[]
[null,null,null,null,null,null,"Précisez: "]
[]
[null,null,null,null,null,null,"Précisez: "]
[]
[null,null,null,null,null,null,"Précisez: "]
[null,null,null,null,null,null,null,null,null,null,null,null,null,"Total  ",{"$f":"IF(SUM(O150:P169)=0,\"\",SUM(O150:P169))","v":""}]

{"sheet":"Année 1 - à compléter","index":2,"n_rows":500,"n_cols":41,"rows_kept":500,"cut":false,"hidden":false,"merged":[[15,1,15,8],[0,0,0,2],[9,2,9,8],[13,2,13,8],[5,1,5,2],[10,2,12,8],[4,0,4,8],[3,0,3,8],[1,5,1,8],[2,5,2,8],[41,1,41,7],[24,1,24,2],[26,1,26,2],[25,1,25,2],[27,1,27,2],[29,1,29,2],[35,1,36,7],[32,1,32,4],[33,1,33,4],[23,1,23,2],[31,1,31,2],[20,1,20,2],[21,1,21,2],[22,1,22,2],[17,1,17,5],[28,1,28,2],[40,1,40,2],[129,14,130,14],[44,6,45,6],[46,1,46,2],[44,1,45,1],[44,2,45,2],[30,1,30,2],[44,8,45,8],[44,4,45,4],[44,5,45,5],[18,1,18,2],[44,3,45,3],[44,7,45,7],[19,1,19,2]]}
[]
[null,null,null,null,null,"Financement des crédits d'impôt remboursables relatifs :",null,null,null,null,null,null,null,null,null,null,null,{"$f":"J21","v":0}]
[null,null,null,null,null," ̶  à l'économie du savoir\n– aux entreprises de la presse d'information écrite"]
["DEMANDE DE GARANTIE / PRÊT"]
["Calculs relatifs aux crédit d'impôts à financer (année 1)"]
[null,{"$f":"'Renseignements à compléter'!H23","v":0},null,null,null,null,{"$f":"'Renseignements à compléter'!J5&'Renseignements à compléter'!L5","v":""},null,{"$f":"'Renseignements à compléter'!O5&'Renseignements à compléter'!P5","v":""}]
[]
["1.","ÉVALUATION DES CRÉDITS D'IMPÔT À FINANCER",null,null,null,null,null,null,null,null,"(SAUF PTM,SAT,CDB et CDAE)"]
[null,null,null,null,null,null,null,null,null,null,"Aucun crédit d'impôt sélectionné","Veuillez sélectionner le crédit d'impôt visé par la présente demande à l'onglet Renseignements à compléter"]
[null,"Crédit d'impôt visé :",{"$f":"IF('Renseignements à compléter'!W11=\"++++++++++     (Cliquez ici pour choisir le crédit d'impôt)     ++++++++++\",\"Aucun crédit d'impôt sélectionné\",'Renseignements à compléter'!W11)","v":"Aucun crédit d'impôt sélectionné"},null,null,null,null,null,null,null,"Développement des affaires électroniques (CDAE) - Mesure fiscale permanente"]
[null,null,{"$f":"VLOOKUP($C$10,$K$9:$L$21,2,FALSE)","v":"Veuillez sélectionner le crédit d'impôt visé par la présente demande à l'onglet Renseignements à compléter"},null,null,null,null,null,null,null,"Production de titres multimédias (PTM) – Mesure fiscale permanente"]
[null,null,null,null,null,null,null,null,null,null,"Services d’adaptation technologique (SAT) – Mesure fiscale permanente","Une dépense n'est pas admissible au crédit d'impôt SAT si cette dépense est admissible aux crédits suivants: crédit d'impôt relatif aux salaires R-D, crédits d'impôt pour la recherche universitaire ou la recherche effectuée par un centre de recherche publique ou consortium de recherche ou pour la recherche précompétitive en partenariat privé."]
[null,"Endroit où seront",null,null,null,null,null,null,null,null,"Pour appuyer à la transformation numérique des entreprises de la presse d'information écrite (CTNP) - échéance le 31 décembre 2023"]
[null,"réalisées les activités :",null,null,null,null,null,null,null,null,"Soutien à la presse d'information écrite (CPIE)","Le salaire admissible doit être réduit de toute aide gouvernementale sauf un montant réputé payé au titre de l'impôt fédéral sur le revenu en application du crédit d'impôt remboursable pour la main-d'œuvre accordé à une organisation journalistique admissible."]
[null,null,null,null,null,null,null,null,null,null,"Crédit d’impôt pour la main-d’œuvre journalistique canadienne (CMOJC)","Le crédit MOJC est applicable à partir du 1er janvier 2019. Le salaire admissible doit être réduit par tout montant d'aide reçu par l'organisation ou qu'elle peut raisonnablement s'attendre à recevoir relativement aux salaires ou traitements payables pour cet employé pour l'année d'imposition. Par exemple, un crédit d'impôt provincial obtenu sur la même dépense de main-d'oeuvre admissible serait généralement considéré comme un montant d'aide."]
[null,"Note : Le tableau de la section 2 ci-dessous doit être utilisé pour établir les coûts relatifs aux salaires. (Sauf pour le crédit SAT)"]
[]
[null,{"$f":"IF(C10=N26,\"Exercise financier \",CONCATENATE(\"Exercice financier \",IF(AND('Renseignements à compléter'!G16<>0,'Renseignements à compléter'!G17<>0),(CONCATENATE(\"(du \",YEAR('Renseignements à compléter'!G16),\"-\",IF(MONTH('Renseignements à compléter'!G16)<10,CONCATENATE(\"0\",MONTH('Renseignements à compléter'!G16)),MONTH('Renseignements à compléter'!G16)),\"-\",IF(DAY('Renseignements à compléter'!G16)<10,CONCATENATE(\"0\",DAY('Renseignements à compléter'!G16)),DAY('Renseignements à compléter'!G16)),\" au \",YEAR('Renseignements à compléter'!G17),\"-\",IF(MONTH('Renseignements à compléter'!G17)<10,CONCATENATE(\"0\",MONTH('Renseignements à compléter'!G17)),MONTH('Renseignements à compléter'!G17)),\"-\",IF(DAY('Renseignements à compléter'!G17)<10,CONCATENATE(\"0\",DAY('Renseignements à compléter'!G17)),DAY('Renseignements à compléter'!G17)),\")\")),\"(du ______________ au _____________ )\")))","v":"Exercice financier (du ______________ au _____________ )"},null,null,null,null,null,null,null,null,null,null,null,"Colonne 1","Colonne 2","Colonne 3","Colonne 4","Colonne 5","Colonne 6","Colonne 7","Colonne 8","Colonne 9","Colonne 10","Colonne 11","Colonne 12","Colonne 13","Colonne 14","Colonne 15","Colonne 16","Colonne 17","Colonne 18","Colonne 19","Colonne 20","Colonne 21","Colonne 22","Colonne 23","Colonne 24","Colonne 25","Colonne 26","Colonne 27","Colonne 28"]
[null,{"$f":"VLOOKUP($C$10,$N$19:$AM$31,1,FALSE)","v":"Aucun crédit d'impôt sélectionné"},null,"Coûts admissibles ($)","% Crédits d'impôt applicables","Crédits d'impôt à financer ($)",null,null,null,null,null,null,null,"Aucun crédit d'impôt sélectionné","Aucun crédit d'impôt sélectionné"]
[null,{"$f":"VLOOKUP($C$10,$N$19:$AM$25,3,FALSE)","v":0},null,{"$f":"G47","v":0},{"$f":"VLOOKUP($C$10,N$19:AM$25,4,FALSE)","v":0},{"$f":"(D20*E20)","v":0},null,null,null,null,null,null,null,"Développement des affaires électroniques (CDAE) - Mesure fiscale permanente","CDAE (attestation requise)\nNote: Seule la portion remboursable du crédit d'impôt peut faire l'objet d'un financement.","Salaires admissibles",0.24,"- moins: Salaires admissibles engagés relatifs aux contrats gouvernementaux non admissibles conclus/renouvelés après le 30 septembre 2015 (s'ils sont inclus à la ligne précédente)",-0.24,"- moins: Aide gouvernementale ou non gouvernementale",-0.24,null,null,null,null,null,null,null,null,null,null,null,null,null,null,null,null,null,null,"83 333 $",83333]
[null,{"$f":"VLOOKUP($C$10,$N$19:$AM$25,5,FALSE)","v":0},null,null,{"$f":"VLOOKUP($C$10,N$19:AM$25,6,FALSE)","v":0},0,null,null,null,null,null,null,null,"Production de titres multimédias (PTM) – Mesure fiscale permanente","PTM (attestation requise)                             ","Titre destiné à être commercialisé disponible en français et qui n'est pas un titre de formation professionnelle             \n        - Salaires",0.375,"        - Salaires sous-traitance - liées",0.375,"        - Salaires sous-traitance - non liées",0.1875,"moins: Aide gouvernementale ou non gouvernementale",-0.375,"Titre destiné à être commercialisé non disponible en français et qui n'est pas un titre de formation professionnelle\n        - Salaires",0.3,"        - Salaires sous-traitance - liées",0.3,"        - Salaires sous-traitance - non liées",0.15,"moins: Aide gouvernementale ou non gouvernementale",-0.3,"        - Autres titres - Salaires",0.26250000000000001,"        - Salaires sous-traitances - liées",0.26250000000000001,"        - Salaires sous-traitance - non liées",0.13125000000000001,"moins: Aide gouvernementale ou non gouvernementale",-0.26250000000000001,"100 000 $ sauf exception*",100000]
[null,{"$f":"VLOOKUP($C$10,$N$19:$AM$25,7,FALSE)","v":0},null,null,{"$f":"VLOOKUP($C$10,N$19:AM$25,8,FALSE)","v":0},0,null,null,null,null,null,null,null,"Services d’adaptation technologique (SAT) – Mesure fiscale permanente","SAT                                                                                    Note: dépenses admissible engagées auprès d'un centre collégial de transfert de technologie ou d'un centre de liaison et de transfert","Dépenses admissibles - Activité formation/information \n        -  Contrat conclu avant le 4 juin 2014",0.5,"        - Frais d'abonnement",0.5,"        - 80% des honoraires",0.5,"moins: Aide gouvernementale ou non gouvernementale",-0.5,"Dépenses admissibles - Activité formation/information \n        - Contrat conclu après le 3 juin 2014",0.4,"        - Frais d'abonnement",0.4,"        - 80% des honoraires",0.4,"moins: Aide gouvernementale ou non gouvernementale",-0.4,null,null,null,null,null,null,null,null,"aucun maximum"]
[null,{"$f":"VLOOKUP($C$10,$N$19:$AM$25,9,FALSE)","v":0},null,null,{"$f":"VLOOKUP($C$10,N$19:AM$25,10,FALSE)","v":0},0,null,null,null,null,null,null,null,"Pour appuyer à la transformation numérique des entreprises de la presse d'information écrite (CTNP) - échéance le 31 décembre 2023","Salaires et dépenses engagés pour l'amorce ou la poursuite de la conversion numérique d'un média écrit admisibles après le 27 mars 2018","Salaires admissibles ",0.35,"- moins: Aide gouvernementale et non gouvernementale",-0.35,"Acquisition ou location d'un bien admissible",0.28000000000000003,"Licence ou attribution d'un droit d'utilisation d'un bien (matériel électronique de traitement de l'information et logiciels)",0.28000000000000003,"Sous-traitants - fournitures de services de conversion numérique",0.28000000000000003,"- moins: Aide gouvernementale ou non gouvernementale",-0.28000000000000003,null,null,null,null,null,null,null,null,null,null,null,null,"aucun maximum"]
[null,{"$f":"VLOOKUP($C$10,$N$19:$AM$25,11,FALSE)","v":0},null,null,{"$f":"VLOOKUP($C$10,N$19:AM$25,12,FALSE)","v":0},0,null,null,null,null,null,null,null,"Soutien à la presse d'information écrite (CPIE)","Salaires engagés après le 31 décembre 2018","Salaires admissibles ",0.35,"- moins: Aide gouvernementale et non gouvernementale",-0.35,null,null,null,null,null,null,null,null,null,null,null,null,null,null,null,null,null,null,null,null,"75 000 $",75000]
[null,{"$f":"VLOOKUP($C$10,$N$19:$AM$25,13,FALSE)","v":0},null,null,{"$f":"VLOOKUP($C$10,N$19:AM$25,14,FALSE)","v":0},0,null,null,null,null,null,null,null,"Crédit d’impôt pour la main-d’œuvre journalistique canadienne (CMOJC)","Salaires engagés après le 31 décembre 2018","Salaires admissibles ",0.25,null,null,null,null,null,null,null,null,null,null,null,null,null,null,null,null,null,null,null,null,null,null,"55 000 $",55000]
[null,{"$f":"VLOOKUP($C$10,$N$19:$AM$25,15,FALSE)","v":0},null,null,{"$f":"VLOOKUP($C$10,N$19:AM$25,16,FALSE)","v":0},0]
[null,{"$f":"VLOOKUP($C$10,$N$19:$AM$25,17,FALSE)","v":0},null,null,{"$f":"VLOOKUP($C$10,N$19:AM$25,18,FALSE)","v":0},0]
[null,{"$f":"VLOOKUP($C$10,$N$19:$AM$25,19,FALSE)","v":0},null,null,{"$f":"VLOOKUP($C$10,N$19:AM$25,20,FALSE)","v":0},0]
[null,{"$f":"VLOOKUP($C$10,$N$19:$AM$25,21,FALSE)","v":0},null,null,{"$f":"VLOOKUP($C$10,N$19:AM$25,22,FALSE)","v":0},0]
[null,{"$f":"VLOOKUP($C$10,$N$19:$AM$25,23,FALSE)","v":0},null,null,{"$f":"VLOOKUP($C$10,N$19:AM$31,24,FALSE)","v":0},0]
[null,{"$f":"VLOOKUP($C$10,$N$19:$AM$31,25,FALSE)","v":0},null,null,{"$f":"VLOOKUP($C$10,$N$19:$AM$25,26,FALSE)","v":0},0]
[null,"Coût total admissible du projet (à calculer) : ",null,null,null,{"$f":"SUM(F20:F31)","v":0}]
[null,"Moins impôt à payer, déduction faite des accomptes provisionnels :"]
[null,"Total des crédits d'impôt à financer : ",null,null,null,{"$f":"MAX(F32-F33,0)","v":0}]
[]
[null,"* Le résultat final du calcul des crédits d'impôt tel qu'accepté par l'Agence du revenu du Canada ou de Revenu Québec pourrait différer de ce montant en raison de situations particulières. Veuillez noter que les calculs sont fournis à titre indicatif seulement et n'engage nullement Investissement Québec."]
[]
[]
[]
[]
["2.","LISTE DES EMPLOYÉS ADMISSIBLES"]
[null,"Note : Veuillez vous référer au formulaire de l'Agence du revenu du Canada ou celui de Revenu Québec correspondant à chaque crédit d'impôt pour vous aider à effectuer le calcul des salaires admissibles (voir la bulle explicative de cette colonne pour obtenir le numéro des formulaires). Si vous utilisez un tableau externe de calcul, veuillez nous le faire parvenir."]
[]
[null,{"$f":"CONCATENATE(\"Exercice financier \",IF(AND('Renseignements à compléter'!G16<>0,'Renseignements à compléter'!G17<>0),(CONCATENATE(\"(du \",YEAR('Renseignements à compléter'!G16),\"-\",IF(MONTH('Renseignements à compléter'!G16)<10,CONCATENATE(\"0\",MONTH('Renseignements à compléter'!G16)),MONTH('Renseignements à compléter'!G16)),\"-\",IF(DAY('Renseignements à compléter'!G16)<10,CONCATENATE(\"0\",DAY('Renseignements à compléter'!G16)),DAY('Renseignements à compléter'!G16)),\" au \",YEAR('Renseignements à compléter'!G17),\"-\",IF(MONTH('Renseignements à compléter'!G17)<10,CONCATENATE(\"0\",MONTH('Renseignements à compléter'!G17)),MONTH('Renseignements à compléter'!G17)),\"-\",IF(DAY('Renseignements à compléter'!G17)<10,CONCATENATE(\"0\",DAY('Renseignements à compléter'!G17)),DAY('Renseignements à compléter'!G17)),\")\")),\"(du ______________ au _____________ )\"))","v":"Exercice financier (du ______________ au _____________ )"}]
[null,"Employés admissibles","Fonction","Salaires versés","Montants d'aide reçus","Salaires versés nets des montants d'aide reçus",{"$f":"IF(C10=N19,\"Salaires admissibles ($)\",CONCATENATE(\"Salaires admissibles \n($)\n (Max: \",VLOOKUP($C$10,$N$20:$AN$31,27,FALSE),\")\"))","v":"Salaires admissibles ($)"},"Nombre de semaines à l’emploi","Nombre de jours dans l'exercice "]
[]
[null,"TOTAL :  ",null,{"$f":"SUM(D50:D500)","v":0},{"$f":"SUM(E50:E500)","v":0},{"$f":"SUM(F50:F500)","v":0},{"$f":"SUM(G50:G500)","v":0},{"$f":"SUM(H50:H500)","v":0},{"$f":"'Renseignements à compléter'!$BF$16","v":0}]
[]
[]
[null,null,null,null,null,{"$f":"MAX(D50-E50,0)","v":0},{"$f":"IF(I50=365,IF(F50<VLOOKUP($C$10,$N$19:$AO$25,28,FALSE),F50,VLOOKUP($C$10,$N$19:$AO$25,28,FALSE)),IF(F50<(VLOOKUP($C$10,$N$19:$AO$25,28,FALSE)*I50/365),F50,VLOOKUP($C$10,$N$19:$AO$25,28,FALSE)*I50/365))","v":0},null,{"$f":"'Renseignements à compléter'!$BF$16","v":0}]
[null,null,null,null,null,0,{"$f":"IF(I51=365,IF(F51<VLOOKUP($C$10,$N$19:$AO$25,28,FALSE),F51,VLOOKUP($C$10,$N$19:$AO$25,28,FALSE)),IF(F51<(VLOOKUP($C$10,$N$19:$AO$25,28,FALSE)*I51/365),F51,VLOOKUP($C$10,$N$19:$AO$25,28,FALSE)*I51/365))","v":0},null,{"$f":"'Renseignements à compléter'!$BF$16","v":0}]
[null,null,null,null,null,0,0,null,{"$f":"'Renseignements à compléter'!$BF$16","v":0}]
[null,null,null,null,null,0,0,null,{"$f":"'Renseignements à compléter'!$BF$16","v":0}]
[null,null,null,null,null,0,0,null,{"$f":"'Renseignements à compléter'!$BF$16","v":0}]
[null,null,null,null,null,0,0,null,{"$f":"'Renseignements à compléter'!$BF$16","v":0}]
[null,null,null,null,null,0,0,null,{"$f":"'Renseignements à compléter'!$BF$16","v":0}]
[null,null,null,null,null,0,0,null,{"$f":"'Renseignements à compléter'!$BF$16","v":0}]
[null,null,null,null,null,0,0,null,{"$f":"'Renseignements à compléter'!$BF$16","v":0}]
[null,null,null,null,null,0,0,null,{"$f":"'Renseignements à compléter'!$BF$16","v":0}]
[null,null,null,null,null,0,0,null,{"$f":"'Renseignements à compléter'!$BF$16","v":0}]
[null,null,null,null,null,0,0,null,{"$f":"'Renseignements à compléter'!$BF$16","v":0}]
[null,null,null,null,null,0,0,null,{"$f":"'Renseignements à compléter'!$BF$16","v":0}]
[null,null,null,null,null,0,0,null,{"$f":"'Renseignements à compléter'!$BF$16","v":0}]
[null,null,null,null,null,0,0,null,{"$f":"'Renseignements à compléter'!$BF$16","v":0}]
[null,".",null,null,null,0,0,null,{"$f":"'Renseignements à compléter'!$BF$16","v":0}]
[null,null,null,null,null,0,0,null,{"$f":"'Renseignements à compléter'!$BF$16","v":0}]
[null,null,null,null,null,0,0,null,{"$f":"'Renseignements à compléter'!$BF$16","v":0}]
[null,null,null,null,null,0,0,null,{"$f":"'Renseignements à compléter'!$BF$16","v":0}]
[null,null,null,null,null,0,0,null,{"$f":"'Renseignements à compléter'!$BF$16","v":0}]
[null,null,null,null,null,0,0,null,{"$f":"'Renseignements à compléter'!$BF$16","v":0}]
[null,null,null,null,null,0,0,null,{"$f":"'Renseignements à compléter'!$BF$16","v":0}]
[null,null,null,null,null,0,0,null,{"$f":"'Renseignements à compléter'!$BF$16","v":0}]
[null,null,null,null,null,0,0,null,{"$f":"'Renseignements à compléter'!$BF$16","v":0}]
[null,null,null,null,null,0,0,null,{"$f":"'Renseignements à compléter'!$BF$16","v":0}]
[null,null,null,null,null,0,0,null,{"$f":"'Renseignements à compléter'!$BF$16","v":0}]
[null,null,null,null,null,0,0,null,{"$f":"'Renseignements à compléter'!$BF$16","v":0}]
[null,null,null,null,null,0,0,null,{"$f":"'Renseignements à compléter'!$BF$16","v":0}]
[null,null,null,null,null,0,0,null,{"$f":"'Renseignements à compléter'!$BF$16","v":0}]
[null,null,null,null,null,0,0,null,{"$f":"'Renseignements à compléter'!$BF$16","v":0}]
[null,null,null,null,null,0,0,null,{"$f":"'Renseignements à compléter'!$BF$16","v":0}]
[null,null,null,null,null,0,0,null,{"$f":"'Renseignements à compléter'!$BF$16","v":0}]
[null,null,null,null,null,0,0,null,{"$f":"'Renseignements à compléter'!$BF$16","v":0}]
[null,null,null,null,null,0,0,null,{"$f":"'Renseignements à compléter'!$BF$16","v":0}]
[null,null,null,null,null,0,0,null,{"$f":"'Renseignements à compléter'!$BF$16","v":0}]
[null,null,null,null,null,0,0,null,{"$f":"'Renseignements à compléter'!$BF$16","v":0}]
[null,null,null,null,null,0,0,null,{"$f":"'Renseignements à compléter'!$BF$16","v":0}]
[null,null,null,null,null,0,0,null,{"$f":"'Renseignements à compléter'!$BF$16","v":0}]
[null,null,null,null,null,0,0,null,{"$f":"'Renseignements à compléter'!$BF$16","v":0}]
[null,null,null,null,null,0,0,null,{"$f":"'Renseignements à compléter'!$BF$16","v":0}]
[null,null,null,null,null,0,0,null,{"$f":"'Renseignements à compléter'!$BF$16","v":0}]
[null,null,null,null,null,0,0,null,{"$f":"'Renseignements à compléter'!$BF$16","v":0}]
[null,null,null,null,null,0,0,null,{"$f":"'Renseignements à compléter'!$BF$16","v":0}]
[null,null,null,null,null,0,0,null,{"$f":"'Renseignements à compléter'!$BF$16","v":0}]
[null,null,null,null,null,0,0,null,{"$f":"'Renseignements à compléter'!$BF$16","v":0}]
[null,null,null,null,null,0,0,null,{"$f":"'Renseignements à compléter'!$BF$16","v":0}]
[null,null,null,null,null,0,0,null,{"$f":"'Renseignements à compléter'!$BF$16","v":0}]
[null,null,null,null,null,0,0,null,{"$f":"'Renseignements à compléter'!$BF$16","v":0}]
[null,null,null,null,null,0,0,null,{"$f":"'Renseignements à compléter'!$BF$16","v":0}]
[null,null,null,null,null,0,0,null,{"$f":"'Renseignements à compléter'!$BF$16","v":0}]
[null,null,null,null,null,0,0,null,{"$f":"'Renseignements à compléter'!$BF$16","v":0}]
[null,null,null,null,null,0,0,null,{"$f":"'Renseignements à compléter'!$BF$16","v":0}]
[null,null,null,null,null,0,0,null,{"$f":"'Renseignements à compléter'!$BF$16","v":0}]
[null,null,null,null,null,0,0,null,{"$f":"'Renseignements à compléter'!$BF$16","v":0}]
[null,null,null,null,null,0,0,null,{"$f":"'Renseignements à compléter'!$BF$16","v":0}]
[null,null,null,null,null,0,0,null,{"$f":"'Renseignements à compléter'!$BF$16","v":0}]
[null,null,null,null,null,0,0,null,{"$f":"'Renseignements à compléter'!$BF$16","v":0}]
[null,null,null,null,null,0,0,null,{"$f":"'Renseignements à compléter'!$BF$16","v":0}]
[null,null,null,null,null,0,0,null,{"$f":"'Renseignements à compléter'!$BF$16","v":0}]
[null,null,null,null,null,0,0,null,{"$f":"'Renseignements à compléter'!$BF$16","v":0}]
[null,null,null,null,null,0,0,null,{"$f":"'Renseignements à compléter'!$BF$16","v":0}]
[null,null,null,null,null,0,0,null,{"$f":"'Renseignements à compléter'!$BF$16","v":0}]
[null,null,null,null,null,0,0,null,{"$f":"'Renseignements à compléter'!$BF$16","v":0}]
[null,null,null,null,null,0,0,null,{"$f":"'Renseignements à compléter'!$BF$16","v":0}]
[null,null,null,null,null,0,0,null,{"$f":"'Renseignements à compléter'!$BF$16","v":0}]
[null,null,null,null,null,{"$f":"MAX(D115-E115,0)","v":0},{"$f":"IF(I115=365,IF(F115<VLOOKUP($C$10,$N$19:$AO$25,28,FALSE),F115,VLOOKUP($C$10,$N$19:$AO$25,28,FALSE)),IF(F115<(VLOOKUP($C$10,$N$19:$AO$25,28,FALSE)*I115/365),F115,VLOOKUP($C$10,$N$19:$AO$25,28,FALSE)*I115/365))","v":0},null,{"$f":"'Renseignements à compléter'!$BF$16","v":0}]
[null,null,null,null,null,0,0,null,{"$f":"'Renseignements à compléter'!$BF$16","v":0}]
[null,null,null,null,null,0,0,null,{"$f":"'Renseignements à compléter'!$BF$16","v":0}]
[null,null,null,null,null,0,0,null,{"$f":"'Renseignements à compléter'!$BF$16","v":0}]
[null,null,null,null,null,0,0,null,{"$f":"'Renseignements à compléter'!$BF$16","v":0}]
[null,null,null,null,null,0,0,null,{"$f":"'Renseignements à compléter'!$BF$16","v":0}]
[null,null,null,null,null,0,0,null,{"$f":"'Renseignements à compléter'!$BF$16","v":0}]
[null,null,null,null,null,0,0,null,{"$f":"'Renseignements à compléter'!$BF$16","v":0}]
[null,null,null,null,null,0,0,null,{"$f":"'Renseignements à compléter'!$BF$16","v":0}]
[null,null,null,null,null,0,0,null,{"$f":"'Renseignements à compléter'!$BF$16","v":0}]
[null,null,null,null,null,0,0,null,{"$f":"'Renseignements à compléter'!$BF$16","v":0}]
[null,null,null,null,null,0,0,null,{"$f":"'Renseignements à compléter'!$BF$16","v":0}]
[null,null,null,null,null,0,0,null,{"$f":"'Renseignements à compléter'!$BF$16","v":0}]
[null,null,null,null,null,0,0,null,{"$f":"'Renseignements à compléter'!$BF$16","v":0}]
[null,null,null,null,null,0,0,null,{"$f":"'Renseignements à compléter'!$BF$16","v":0}]
[null,null,null,null,null,0,0,null,{"$f":"'Renseignements à compléter'!$BF$16","v":0}]
[null,null,null,null,null,0,0,null,{"$f":"'Renseignements à compléter'!$BF$16","v":0}]
[null,null,null,null,null,0,0,null,{"$f":"'Renseignements à compléter'!$BF$16","v":0}]
[null,null,null,null,null,0,0,null,{"$f":"'Renseignements à compléter'!$BF$16","v":0}]
[null,null,null,null,null,0,0,null,{"$f":"'Renseignements à compléter'!$BF$16","v":0}]
[null,null,null,null,null,0,0,null,{"$f":"'Renseignements à compléter'!$BF$16","v":0}]
[null,null,null,null,null,0,0,null,{"$f":"'Renseignements à compléter'!$BF$16","v":0}]
[null,null,null,null,null,0,0,null,{"$f":"'Renseignements à compléter'!$BF$16","v":0}]
[null,null,null,null,null,0,0,null,{"$f":"'Renseignements à compléter'!$BF$16","v":0}]
[null,null,null,null,null,0,0,null,{"$f":"'Renseignements à compléter'!$BF$16","v":0}]
[null,null,null,null,null,0,0,null,{"$f":"'Renseignements à compléter'!$BF$16","v":0}]
[null,null,null,null,null,0,0,null,{"$f":"'Renseignements à compléter'!$BF$16","v":0}]
[null,null,null,null,null,0,0,null,{"$f":"'Renseignements à compléter'!$BF$16","v":0}]
[null,null,null,null,null,0,0,null,{"$f":"'Renseignements à compléter'!$BF$16","v":0}]
[null,null,null,null,null,0,0,null,{"$f":"'Renseignements à compléter'!$BF$16","v":0}]
[null,null,null,null,null,0,0,null,{"$f":"'Renseignements à compléter'!$BF$16","v":0}]
[null,null,null,null,null,0,0,null,{"$f":"'Renseignements à compléter'!$BF$16","v":0}]
[null,null,null,null,null,0,0,null,{"$f":"'Renseignements à compléter'!$BF$16","v":0}]
[null,null,null,null,null,0,0,null,{"$f":"'Renseignements à compléter'!$BF$16","v":0}]
[null,null,null,null,null,0,0,null,{"$f":"'Renseignements à compléter'!$BF$16","v":0}]
[null,null,null,null,null,0,0,null,{"$f":"'Renseignements à compléter'!$BF$16","v":0}]
[null,null,null,null,null,0,0,null,{"$f":"'Renseignements à compléter'!$BF$16","v":0}]
[null,null,null,null,null,0,0,null,{"$f":"'Renseignements à compléter'!$BF$16","v":0}]
[null,null,null,null,null,0,0,null,{"$f":"'Renseignements à compléter'!$BF$16","v":0}]
[null,null,null,null,null,0,0,null,{"$f":"'Renseignements à compléter'!$BF$16","v":0}]
[null,null,null,null,null,0,0,null,{"$f":"'Renseignements à compléter'!$BF$16","v":0}]
[null,null,null,null,null,0,0,null,{"$f":"'Renseignements à compléter'!$BF$16","v":0}]
[null,null,null,null,null,0,0,null,{"$f":"'Renseignements à compléter'!$BF$16","v":0}]
[null,null,null,null,null,0,0,null,{"$f":"'Renseignements à compléter'!$BF$16","v":0}]
[null,null,null,null,null,0,0,null,{"$f":"'Renseignements à compléter'!$BF$16","v":0}]
[null,null,null,null,null,0,0,null,{"$f":"'Renseignements à compléter'!$BF$16","v":0}]
[null,null,null,null,null,0,0,null,{"$f":"'Renseignements à compléter'!$BF$16","v":0}]
[null,null,null,null,null,0,0,null,{"$f":"'Renseignements à compléter'!$BF$16","v":0}]
[null,null,null,null,null,0,0,null,{"$f":"'Renseignements à compléter'!$BF$16","v":0}]
[null,null,null,null,null,0,0,null,{"$f":"'Renseignements à compléter'!$BF$16","v":0}]
[null,null,null,null,null,0,0,null,{"$f":"'Renseignements à compléter'!$BF$16","v":0}]
[null,null,null,null,null,0,0,null,{"$f":"'Renseignements à compléter'!$BF$16","v":0}]
[null,null,null,null,null,0,0,null,{"$f":"'Renseignements à compléter'!$BF$16","v":0}]
[null,null,null,null,null,0,0,null,{"$f":"'Renseignements à compléter'!$BF$16","v":0}]
[null,null,null,null,null,0,0,null,{"$f":"'Renseignements à compléter'!$BF$16","v":0}]
[null,null,null,null,null,0,0,null,{"$f":"'Renseignements à compléter'!$BF$16","v":0}]
[null,null,null,null,null,0,0,null,{"$f":"'Renseignements à compléter'!$BF$16","v":0}]
[null,null,null,null,null,0,0,null,{"$f":"'Renseignements à compléter'!$BF$16","v":0}]
[null,null,null,null,null,0,0,null,{"$f":"'Renseignements à compléter'!$BF$16","v":0}]
[null,null,null,null,null,0,0,null,{"$f":"'Renseignements à compléter'!$BF$16","v":0}]
[null,null,null,null,null,0,0,null,{"$f":"'Renseignements à compléter'!$BF$16","v":0}]
[null,null,null,null,null,0,0,null,{"$f":"'Renseignements à compléter'!$BF$16","v":0}]
[null,null,null,null,null,0,0,null,{"$f":"'Renseignements à compléter'!$BF$16","v":0}]
[null,null,null,null,null,0,0,null,{"$f":"'Renseignements à compléter'!$BF$16","v":0}]
[null,null,null,null,null,{"$f":"MAX(D179-E179,0)","v":0},{"$f":"IF(I179=365,IF(F179<VLOOKUP($C$10,$N$19:$AO$25,28,FALSE),F179,VLOOKUP($C$10,$N$19:$AO$25,28,FALSE)),IF(F179<(VLOOKUP($C$10,$N$19:$AO$25,28,FALSE)*I179/365),F179,VLOOKUP($C$10,$N$19:$AO$25,28,FALSE)*I179/365))","v":0},null,{"$f":"'Renseignements à compléter'!$BF$16","v":0}]
[null,null,null,null,null,0,0,null,{"$f":"'Renseignements à compléter'!$BF$16","v":0}]
[null,null,null,null,null,0,0,null,{"$f":"'Renseignements à compléter'!$BF$16","v":0}]
[null,null,null,null,null,0,0,null,{"$f":"'Renseignements à compléter'!$BF$16","v":0}]
[null,null,null,null,null,0,0,null,{"$f":"'Renseignements à compléter'!$BF$16","v":0}]
[null,null,null,null,null,0,0,null,{"$f":"'Renseignements à compléter'!$BF$16","v":0}]
[null,null,null,null,null,0,0,null,{"$f":"'Renseignements à compléter'!$BF$16","v":0}]
[null,null,null,null,null,0,0,null,{"$f":"'Renseignements à compléter'!$BF$16","v":0}]
[null,null,null,null,null,0,0,null,{"$f":"'Renseignements à compléter'!$BF$16","v":0}]
[null,null,null,null,null,0,0,null,{"$f":"'Renseignements à compléter'!$BF$16","v":0}]
[null,null,null,null,null,0,0,null,{"$f":"'Renseignements à compléter'!$BF$16","v":0}]
[null,null,null,null,null,0,0,null,{"$f":"'Renseignements à compléter'!$BF$16","v":0}]
[null,null,null,null,null,0,0,null,{"$f":"'Renseignements à compléter'!$BF$16","v":0}]
[null,null,null,null,null,0,0,null,{"$f":"'Renseignements à compléter'!$BF$16","v":0}]
[null,null,null,null,null,0,0,null,{"$f":"'Renseignements à compléter'!$BF$16","v":0}]
[null,null,null,null,null,0,0,null,{"$f":"'Renseignements à compléter'!$BF$16","v":0}]
[null,null,null,null,null,0,0,null,{"$f":"'Renseignements à compléter'!$BF$16","v":0}]
[null,null,null,null,null,0,0,null,{"$f":"'Renseignements à compléter'!$BF$16","v":0}]
[null,null,null,null,null,0,0,null,{"$f":"'Renseignements à compléter'!$BF$16","v":0}]
[null,null,null,null,null,0,0,null,{"$f":"'Renseignements à compléter'!$BF$16","v":0}]
[null,null,null,null,null,0,0,null,{"$f":"'Renseignements à compléter'!$BF$16","v":0}]
[null,null,null,null,null,0,0,null,{"$f":"'Renseignements à compléter'!$BF$16","v":0}]
[null,null,null,null,null,0,0,null,{"$f":"'Renseignements à compléter'!$BF$16","v":0}]
[null,null,null,null,null,0,0,null,{"$f":"'Renseignements à compléter'!$BF$16","v":0}]
[null,null,null,null,null,0,0,null,{"$f":"'Renseignements à compléter'!$BF$16","v":0}]
[null,null,null,null,null,0,0,null,{"$f":"'Renseignements à compléter'!$BF$16","v":0}]
[null,null,null,null,null,0,0,null,{"$f":"'Renseignements à compléter'!$BF$16","v":0}]
[null,null,null,null,null,0,0,null,{"$f":"'Renseignements à compléter'!$BF$16","v":0}]
[null,null,null,null,null,0,0,null,{"$f":"'Renseignements à compléter'!$BF$16","v":0}]
[null,null,null,null,null,0,0,null,{"$f":"'Renseignements à compléter'!$BF$16","v":0}]
[null,null,null,null,null,0,0,null,{"$f":"'Renseignements à compléter'!$BF$16","v":0}]
[null,null,null,null,null,0,0,null,{"$f":"'Renseignements à compléter'!$BF$16","v":0}]
[null,null,null,null,null,0,0,null,{"$f":"'Renseignements à compléter'!$BF$16","v":0}]
[null,null,null,null,null,0,0,null,{"$f":"'Renseignements à compléter'!$BF$16","v":0}]
[null,null,null,null,null,0,0,null,{"$f":"'Renseignements à compléter'!$BF$16","v":0}]
[null,null,null,null,null,0,0,null,{"$f":"'Renseignements à compléter'!$BF$16","v":0}]
[null,null,null,null,null,0,0,null,{"$f":"'Renseignements à compléter'!$BF$16","v":0}]
[null,null,null,null,null,0,0,null,{"$f":"'Renseignements à compléter'!$BF$16","v":0}]
[null,null,null,null,null,0,0,null,{"$f":"'Renseignements à compléter'!$BF$16","v":0}]
[null,null,null,null,null,0,0,null,{"$f":"'Renseignements à compléter'!$BF$16","v":0}]
[null,null,null,null,null,0,0,null,{"$f":"'Renseignements à compléter'!$BF$16","v":0}]
[null,null,null,null,null,0,0,null,{"$f":"'Renseignements à compléter'!$BF$16","v":0}]
[null,null,null,null,null,0,0,null,{"$f":"'Renseignements à compléter'!$BF$16","v":0}]
[null,null,null,null,null,0,0,null,{"$f":"'Renseignements à compléter'!$BF$16","v":0}]
[null,null,null,null,null,0,0,null,{"$f":"'Renseignements à compléter'!$BF$16","v":0}]
[null,null,null,null,null,0,0,null,{"$f":"'Renseignements à compléter'!$BF$16","v":0}]
[null,null,null,null,null,0,0,null,{"$f":"'Renseignements à compléter'!$BF$16","v":0}]
[null,null,null,null,null,0,0,null,{"$f":"'Renseignements à compléter'!$BF$16","v":0}]
[null,null,null,null,null,0,0,null,{"$f":"'Renseignements à compléter'!$BF$16","v":0}]
[null,null,null,null,null,0,0,null,{"$f":"'Renseignements à compléter'!$BF$16","v":0}]
[null,null,null,null,null,0,0,null,{"$f":"'Renseignements à compléter'!$BF$16","v":0}]
[null,null,null,null,null,0,0,null,{"$f":"'Renseignements à compléter'!$BF$16","v":0}]
[null,null,null,null,null,0,0,null,{"$f":"'Renseignements à compléter'!$BF$16","v":0}]
[null,null,null,null,null,0,0,null,{"$f":"'Renseignements à compléter'!$BF$16","v":0}]
[null,null,null,null,null,0,0,null,{"$f":"'Renseignements à compléter'!$BF$16","v":0}]
[null,null,null,null,null,0,0,null,{"$f":"'Renseignements à compléter'!$BF$16","v":0}]
[null,null,null,null,null,0,0,null,{"$f":"'Renseignements à compléter'!$BF$16","v":0}]
[null,null,null,null,null,0,0,null,{"$f":"'Renseignements à compléter'!$BF$16","v":0}]
[null,null,null,null,null,0,0,null,{"$f":"'Renseignements à compléter'!$BF$16","v":0}]
[null,null,null,null,null,0,0,null,{"$f":"'Renseignements à compléter'!$BF$16","v":0}]
[null,null,null,null,null,0,0,null,{"$f":"'Renseignements à compléter'!$BF$16","v":0}]
[null,null,null,null,null,0,0,null,{"$f":"'Renseignements à compléter'!$BF$16","v":0}]
[null,null,null,null,null,0,0,null,{"$f":"'Renseignements à compléter'!$BF$16","v":0}]
[null,null,null,null,null,0,0,null,{"$f":"'Renseignements à compléter'!$BF$16","v":0}]
[null,null,null,null,null,{"$f":"MAX(D243-E243,0)","v":0},{"$f":"IF(I243=365,IF(F243<VLOOKUP($C$10,$N$19:$AO$25,28,FALSE),F243,VLOOKUP($C$10,$N$19:$AO$25,28,FALSE)),IF(F243<(VLOOKUP($C$10,$N$19:$AO$25,28,FALSE)*I243/365),F243,VLOOKUP($C$10,$N$19:$AO$25,28,FALSE)*I243/365))","v":0},null,{"$f":"'Renseignements à compléter'!$BF$16","v":0}]
[null,null,null,null,null,0,0,null,{"$f":"'Renseignements à compléter'!$BF$16","v":0}]
[null,null,null,null,null,0,0,null,{"$f":"'Renseignements à compléter'!$BF$16","v":0}]
[null,null,null,null,null,0,0,null,{"$f":"'Renseignements à compléter'!$BF$16","v":0}]
[null,null,null,null,null,0,0,null,{"$f":"'Renseignements à compléter'!$BF$16","v":0}]
[null,null,null,null,null,0,0,null,{"$f":"'Renseignements à compléter'!$BF$16","v":0}]
[null,null,null,null,null,0,0,null,{"$f":"'Renseignements à compléter'!$BF$16","v":0}]
[null,null,null,null,null,0,0,null,{"$f":"'Renseignements à compléter'!$BF$16","v":0}]
[null,null,null,null,null,0,0,null,{"$f":"'Renseignements à compléter'!$BF$16","v":0}]
[null,null,null,null,null,0,0,null,{"$f":"'Renseignements à compléter'!$BF$16","v":0}]
[null,null,null,null,null,0,0,null,{"$f":"'Renseignements à compléter'!$BF$16","v":0}]
[null,null,null,null,null,0,0,null,{"$f":"'Renseignements à compléter'!$BF$16","v":0}]
[null,null,null,null,null,0,0,null,{"$f":"'Renseignements à compléter'!$BF$16","v":0}]
[null,null,null,null,null,0,0,null,{"$f":"'Renseignements à compléter'!$BF$16","v":0}]
[null,null,null,null,null,0,0,null,{"$f":"'Renseignements à compléter'!$BF$16","v":0}]
[null,null,null,null,null,0,0,null,{"$f":"'Renseignements à compléter'!$BF$16","v":0}]
[null,null,null,null,null,0,0,null,{"$f":"'Renseignements à compléter'!$BF$16","v":0}]
[null,null,null,null,null,0,0,null,{"$f":"'Renseignements à compléter'!$BF$16","v":0}]
[null,null,null,null,null,0,0,null,{"$f":"'Renseignements à compléter'!$BF$16","v":0}]
[null,null,null,null,null,0,0,null,{"$f":"'Renseignements à compléter'!$BF$16","v":0}]
[null,null,null,null,null,0,0,null,{"$f":"'Renseignements à compléter'!$BF$16","v":0}]
[null,null,null,null,null,0,0,null,{"$f":"'Renseignements à compléter'!$BF$16","v":0}]
[null,null,null,null,null,0,0,null,{"$f":"'Renseignements à compléter'!$BF$16","v":0}]
[null,null,null,null,null,0,0,null,{"$f":"'Renseignements à compléter'!$BF$16","v":0}]
[null,null,null,null,null,0,0,null,{"$f":"'Renseignements à compléter'!$BF$16","v":0}]
[null,null,null,null,null,0,0,null,{"$f":"'Renseignements à compléter'!$BF$16","v":0}]
[null,null,null,null,null,0,0,null,{"$f":"'Renseignements à compléter'!$BF$16","v":0}]
[null,null,null,null,null,0,0,null,{"$f":"'Renseignements à compléter'!$BF$16","v":0}]
[null,null,null,null,null,0,0,null,{"$f":"'Renseignements à compléter'!$BF$16","v":0}]
[null,null,null,null,null,0,0,null,{"$f":"'Renseignements à compléter'!$BF$16","v":0}]
[null,null,null,null,null,0,0,null,{"$f":"'Renseignements à compléter'!$BF$16","v":0}]
[null,null,null,null,null,0,0,null,{"$f":"'Renseignements à compléter'!$BF$16","v":0}]
[null,null,null,null,null,0,0,null,{"$f":"'Renseignements à compléter'!$BF$16","v":0}]
[null,null,null,null,null,0,0,null,{"$f":"'Renseignements à compléter'!$BF$16","v":0}]
[null,null,null,null,null,0,0,null,{"$f":"'Renseignements à compléter'!$BF$16","v":0}]
[null,null,null,null,null,0,0,null,{"$f":"'Renseignements à compléter'!$BF$16","v":0}]
[null,null,null,null,null,0,0,null,{"$f":"'Renseignements à compléter'!$BF$16","v":0}]
[null,null,null,null,null,0,0,null,{"$f":"'Renseignements à compléter'!$BF$16","v":0}]
[null,null,null,null,null,0,0,null,{"$f":"'Renseignements à compléter'!$BF$16","v":0}]
[null,null,null,null,null,0,0,null,{"$f":"'Renseignements à compléter'!$BF$16","v":0}]
[null,null,null,null,null,0,0,null,{"$f":"'Renseignements à compléter'!$BF$16","v":0}]
[null,null,null,null,null,0,0,null,{"$f":"'Renseignements à compléter'!$BF$16","v":0}]
[null,null,null,null,null,0,0,null,{"$f":"'Renseignements à compléter'!$BF$16","v":0}]
[null,null,null,null,null,0,0,null,{"$f":"'Renseignements à compléter'!$BF$16","v":0}]
[null,null,null,null,null,0,0,null,{"$f":"'Renseignements à compléter'!$BF$16","v":0}]
[null,null,null,null,null,0,0,null,{"$f":"'Renseignements à compléter'!$BF$16","v":0}]
[null,null,null,null,null,0,0,null,{"$f":"'Renseignements à compléter'!$BF$16","v":0}]
[null,null,null,null,null,0,0,null,{"$f":"'Renseignements à compléter'!$BF$16","v":0}]
[null,null,null,null,null,0,0,null,{"$f":"'Renseignements à compléter'!$BF$16","v":0}]
[null,null,null,null,null,0,0,null,{"$f":"'Renseignements à compléter'!$BF$16","v":0}]
[null,null,null,null,null,0,0,null,{"$f":"'Renseignements à compléter'!$BF$16","v":0}]
[null,null,null,null,null,0,0,null,{"$f":"'Renseignements à compléter'!$BF$16","v":0}]
[null,null,null,null,null,0,0,null,{"$f":"'Renseignements à compléter'!$BF$16","v":0}]
[null,null,null,null,null,0,0,null,{"$f":"'Renseignements à compléter'!$BF$16","v":0}]
[null,null,null,null,null,0,0,null,{"$f":"'Renseignements à compléter'!$BF$16","v":0}]
[null,null,null,null,null,0,0,null,{"$f":"'Renseignements à compléter'!$BF$16","v":0}]
[null,null,null,null,null,0,0,null,{"$f":"'Renseignements à compléter'!$BF$16","v":0}]
[null,null,null,null,null,0,0,null,{"$f":"'Renseignements à compléter'!$BF$16","v":0}]
[null,null,null,null,null,0,0,null,{"$f":"'Renseignements à compléter'!$BF$16","v":0}]
[null,null,null,null,null,0,0,null,{"$f":"'Renseignements à compléter'!$BF$16","v":0}]
[null,null,null,null,null,0,0,null,{"$f":"'Renseignements à compléter'!$BF$16","v":0}]
[null,null,null,null,null,0,0,null,{"$f":"'Renseignements à compléter'!$BF$16","v":0}]
[null,null,null,null,null,0,0,null,{"$f":"'Renseignements à compléter'!$BF$16","v":0}]
[null,null,null,null,null,0,0,null,{"$f":"'Renseignements à compléter'!$BF$16","v":0}]
[null,null,null,null,null,{"$f":"MAX(D307-E307,0)","v":0},{"$f":"IF(I307=365,IF(F307<VLOOKUP($C$10,$N$19:$AO$25,28,FALSE),F307,VLOOKUP($C$10,$N$19:$AO$25,28,FALSE)),IF(F307<(VLOOKUP($C$10,$N$19:$AO$25,28,FALSE)*I307/365),F307,VLOOKUP($C$10,$N$19:$AO$25,28,FALSE)*I307/365))","v":0},null,{"$f":"'Renseignements à compléter'!$BF$16","v":0}]
[null,null,null,null,null,0,0,null,{"$f":"'Renseignements à compléter'!$BF$16","v":0}]
[null,null,null,null,null,0,0,null,{"$f":"'Renseignements à compléter'!$BF$16","v":0}]
[null,null,null,null,null,0,0,null,{"$f":"'Renseignements à compléter'!$BF$16","v":0}]
[null,null,null,null,null,0,0,null,{"$f":"'Renseignements à compléter'!$BF$16","v":0}]
[null,null,null,null,null,0,0,null,{"$f":"'Renseignements à compléter'!$BF$16","v":0}]
[null,null,null,null,null,0,0,null,{"$f":"'Renseignements à compléter'!$BF$16","v":0}]
[null,null,null,null,null,0,0,null,{"$f":"'Renseignements à compléter'!$BF$16","v":0}]
[null,null,null,null,null,0,0,null,{"$f":"'Renseignements à compléter'!$BF$16","v":0}]
[null,null,null,null,null,0,0,null,{"$f":"'Renseignements à compléter'!$BF$16","v":0}]
[null,null,null,null,null,0,0,null,{"$f":"'Renseignements à compléter'!$BF$16","v":0}]
[null,null,null,null,null,0,0,null,{"$f":"'Renseignements à compléter'!$BF$16","v":0}]
[null,null,null,null,null,0,0,null,{"$f":"'Renseignements à compléter'!$BF$16","v":0}]
[null,null,null,null,null,0,0,null,{"$f":"'Renseignements à compléter'!$BF$16","v":0}]
[null,null,null,null,null,0,0,null,{"$f":"'Renseignements à compléter'!$BF$16","v":0}]
[null,null,null,null,null,0,0,null,{"$f":"'Renseignements à compléter'!$BF$16","v":0}]
[null,null,null,null,null,0,0,null,{"$f":"'Renseignements à compléter'!$BF$16","v":0}]
[null,null,null,null,null,0,0,null,{"$f":"'Renseignements à compléter'!$BF$16","v":0}]
[null,null,null,null,null,0,0,null,{"$f":"'Renseignements à compléter'!$BF$16","v":0}]
[null,null,null,null,null,0,0,null,{"$f":"'Renseignements à compléter'!$BF$16","v":0}]
[null,null,null,null,null,0,0,null,{"$f":"'Renseignements à compléter'!$BF$16","v":0}]
[null,null,null,null,null,0,0,null,{"$f":"'Renseignements à compléter'!$BF$16","v":0}]
[null,null,null,null,null,0,0,null,{"$f":"'Renseignements à compléter'!$BF$16","v":0}]
[null,null,null,null,null,0,0,null,{"$f":"'Renseignements à compléter'!$BF$16","v":0}]
[null,null,null,null,null,0,0,null,{"$f":"'Renseignements à compléter'!$BF$16","v":0}]
[null,null,null,null,null,0,0,null,{"$f":"'Renseignements à compléter'!$BF$16","v":0}]
[null,null,null,null,null,0,0,null,{"$f":"'Renseignements à compléter'!$BF$16","v":0}]
[null,null,null,null,null,0,0,null,{"$f":"'Renseignements à compléter'!$BF$16","v":0}]
[null,null,null,null,null,0,0,null,{"$f":"'Renseignements à compléter'!$BF$16","v":0}]
[null,null,null,null,null,0,0,null,{"$f":"'Renseignements à compléter'!$BF$16","v":0}]
[null,null,null,null,null,0,0,null,{"$f":"'Renseignements à compléter'!$BF$16","v":0}]
[null,null,null,null,null,0,0,null,{"$f":"'Renseignements à compléter'!$BF$16","v":0}]
[null,null,null,null,null,0,0,null,{"$f":"'Renseignements à compléter'!$BF$16","v":0}]
[null,null,null,null,null,0,0,null,{"$f":"'Renseignements à compléter'!$BF$16","v":0}]
[null,null,null,null,null,0,0,null,{"$f":"'Renseignements à compléter'!$BF$16","v":0}]
[null,null,null,null,null,0,0,null,{"$f":"'Renseignements à compléter'!$BF$16","v":0}]
[null,null,null,null,null,0,0,null,{"$f":"'Renseignements à compléter'!$BF$16","v":0}]
[null,null,null,null,null,0,0,null,{"$f":"'Renseignements à compléter'!$BF$16","v":0}]
[null,null,null,null,null,0,0,null,{"$f":"'Renseignements à compléter'!$BF$16","v":0}]
[null,null,null,null,null,0,0,null,{"$f":"'Renseignements à compléter'!$BF$16","v":0}]
[null,null,null,null,null,0,0,null,{"$f":"'Renseignements à compléter'!$BF$16","v":0}]
[null,null,null,null,null,0,0,null,{"$f":"'Renseignements à compléter'!$BF$16","v":0}]
[null,null,null,null,null,0,0,null,{"$f":"'Renseignements à compléter'!$BF$16","v":0}]
[null,null,null,null,null,0,0,null,{"$f":"'Renseignements à compléter'!$BF$16","v":0}]
[null,null,null,null,null,0,0,null,{"$f":"'Renseignements à compléter'!$BF$16","v":0}]
[null,null,null,null,null,0,0,null,{"$f":"'Renseignements à compléter'!$BF$16","v":0}]
[null,null,null,null,null,0,0,null,{"$f":"'Renseignements à compléter'!$BF$16","v":0}]
[null,null,null,null,null,0,0,null,{"$f":"'Renseignements à compléter'!$BF$16","v":0}]
[null,null,null,null,null,0,0,null,{"$f":"'Renseignements à compléter'!$BF$16","v":0}]
[null,null,null,null,null,0,0,null,{"$f":"'Renseignements à compléter'!$BF$16","v":0}]
[null,null,null,null,null,0,0,null,{"$f":"'Renseignements à compléter'!$BF$16","v":0}]
[null,null,null,null,null,0,0,null,{"$f":"'Renseignements à compléter'!$BF$16","v":0}]
[null,null,null,null,null,0,0,null,{"$f":"'Renseignements à compléter'!$BF$16","v":0}]
[null,null,null,null,null,0,0,null,{"$f":"'Renseignements à compléter'!$BF$16","v":0}]
[null,null,null,null,null,0,0,null,{"$f":"'Renseignements à compléter'!$BF$16","v":0}]
[null,null,null,null,null,0,0,null,{"$f":"'Renseignements à compléter'!$BF$16","v":0}]
[null,null,null,null,null,0,0,null,{"$f":"'Renseignements à compléter'!$BF$16","v":0}]
[null,null,null,null,null,0,0,null,{"$f":"'Renseignements à compléter'!$BF$16","v":0}]
[null,null,null,null,null,0,0,null,{"$f":"'Renseignements à compléter'!$BF$16","v":0}]
[null,null,null,null,null,0,0,null,{"$f":"'Renseignements à compléter'!$BF$16","v":0}]
[null,null,null,null,null,0,0,null,{"$f":"'Renseignements à compléter'!$BF$16","v":0}]
[null,null,null,null,null,0,0,null,{"$f":"'Renseignements à compléter'!$BF$16","v":0}]
[null,null,null,null,null,{"$f":"MAX(D369-E369,0)","v":0},0,null,{"$f":"'Renseignements à compléter'!$BF$16","v":0}]
[null,null,null,null,null,0,0,null,{"$f":"'Renseignements à compléter'!$BF$16","v":0}]
[null,null,null,null,null,0,{"$f":"IF(I371=365,IF(F371<VLOOKUP($C$10,$N$19:$AO$25,28,FALSE),F371,VLOOKUP($C$10,$N$19:$AO$25,28,FALSE)),IF(F371<(VLOOKUP($C$10,$N$19:$AO$25,28,FALSE)*I371/365),F371,VLOOKUP($C$10,$N$19:$AO$25,28,FALSE)*I371/365))","v":0},null,{"$f":"'Renseignements à compléter'!$BF$16","v":0}]
[null,null,null,null,null,0,0,null,{"$f":"'Renseignements à compléter'!$BF$16","v":0}]
[null,null,null,null,null,0,0,null,{"$f":"'Renseignements à compléter'!$BF$16","v":0}]
[null,null,null,null,null,0,0,null,{"$f":"'Renseignements à compléter'!$BF$16","v":0}]
[null,null,null,null,null,0,0,null,{"$f":"'Renseignements à compléter'!$BF$16","v":0}]
[null,null,null,null,null,0,0,null,{"$f":"'Renseignements à compléter'!$BF$16","v":0}]
[null,null,null,null,null,0,0,null,{"$f":"'Renseignements à compléter'!$BF$16","v":0}]
[null,null,null,null,null,0,0,null,{"$f":"'Renseignements à compléter'!$BF$16","v":0}]
[null,null,null,null,null,0,0,null,{"$f":"'Renseignements à compléter'!$BF$16","v":0}]
[null,null,null,null,null,0,0,null,{"$f":"'Renseignements à compléter'!$BF$16","v":0}]
[null,null,null,null,null,0,0,null,{"$f":"'Renseignements à compléter'!$BF$16","v":0}]
[null,null,null,null,null,0,0,null,{"$f":"'Renseignements à compléter'!$BF$16","v":0}]
[null,null,null,null,null,0,0,null,{"$f":"'Renseignements à compléter'!$BF$16","v":0}]
[null,null,null,null,null,0,0,null,{"$f":"'Renseignements à compléter'!$BF$16","v":0}]
[null,null,null,null,null,{"$f":"MAX(D385-E385,0)","v":0},0,null,{"$f":"'Renseignements à compléter'!$BF$16","v":0}]
[null,null,null,null,null,0,0,null,{"$f":"'Renseignements à compléter'!$BF$16","v":0}]
[null,null,null,null,null,0,0,null,{"$f":"'Renseignements à compléter'!$BF$16","v":0}]
[null,null,null,null,null,0,0,null,{"$f":"'Renseignements à compléter'!$BF$16","v":0}]
[null,null,null,null,null,0,0,null,{"$f":"'Renseignements à compléter'!$BF$16","v":0}]
[null,null,null,null,null,0,0,null,{"$f":"'Renseignements à compléter'!$BF$16","v":0}]
[null,null,null,null,null,0,0,null,{"$f":"'Renseignements à compléter'!$BF$16","v":0}]
[null,null,null,null,null,0,0,null,{"$f":"'Renseignements à compléter'!$BF$16","v":0}]
[null,null,null,null,null,0,0,null,{"$f":"'Renseignements à compléter'!$BF$16","v":0}]
[null,null,null,null,null,0,0,null,{"$f":"'Renseignements à compléter'!$BF$16","v":0}]
[null,null,null,null,null,0,0,null,{"$f":"'Renseignements à compléter'!$BF$16","v":0}]
[null,null,null,null,null,0,0,null,{"$f":"'Renseignements à compléter'!$BF$16","v":0}]
[null,null,null,null,null,0,0,null,{"$f":"'Renseignements à compléter'!$BF$16","v":0}]
[null,null,null,null,null,0,0,null,{"$f":"'Renseignements à compléter'!$BF$16","v":0}]
[null,null,null,null,null,0,0,null,{"$f":"'Renseignements à compléter'!$BF$16","v":0}]
[null,null,null,null,null,0,0,null,{"$f":"'Renseignements à compléter'!$BF$16","v":0}]
[null,null,null,null,null,0,0,null,{"$f":"'Renseignements à compléter'!$BF$16","v":0}]
[null,null,null,null,null,0,0,null,{"$f":"'Renseignements à compléter'!$BF$16","v":0}]
[null,null,null,null,null,0,0,null,{"$f":"'Renseignements à compléter'!$BF$16","v":0}]
[null,null,null,null,null,0,0,null,{"$f":"'Renseignements à compléter'!$BF$16","v":0}]
[null,null,null,null,null,0,0,null,{"$f":"'Renseignements à compléter'!$BF$16","v":0}]
[null,null,null,null,null,0,0,null,{"$f":"'Renseignements à compléter'!$BF$16","v":0}]
[null,null,null,null,null,0,0,null,{"$f":"'Renseignements à compléter'!$BF$16","v":0}]
[null,null,null,null,null,0,0,null,{"$f":"'Renseignements à compléter'!$BF$16","v":0}]
[null,null,null,null,null,0,0,null,{"$f":"'Renseignements à compléter'!$BF$16","v":0}]
[null,null,null,null,null,0,0,null,{"$f":"'Renseignements à compléter'!$BF$16","v":0}]
[null,null,null,null,null,0,0,null,{"$f":"'Renseignements à compléter'!$BF$16","v":0}]
[null,null,null,null,null,0,0,null,{"$f":"'Renseignements à compléter'!$BF$16","v":0}]
[null,null,null,null,null,0,0,null,{"$f":"'Renseignements à compléter'!$BF$16","v":0}]
[null,null,null,null,null,0,0,null,{"$f":"'Renseignements à compléter'!$BF$16","v":0}]
[null,null,null,null,null,0,0,null,{"$f":"'Renseignements à compléter'!$BF$16","v":0}]
[null,null,null,null,null,0,0,null,{"$f":"'Renseignements à compléter'!$BF$16","v":0}]
[null,null,null,null,null,0,0,null,{"$f":"'Renseignements à compléter'!$BF$16","v":0}]
[null,null,null,null,null,0,0,null,{"$f":"'Renseignements à compléter'!$BF$16","v":0}]
[null,null,null,null,null,0,0,null,{"$f":"'Renseignements à compléter'!$BF$16","v":0}]
[null,null,null,null,null,0,0,null,{"$f":"'Renseignements à compléter'!$BF$16","v":0}]
[null,null,null,null,null,0,0,null,{"$f":"'Renseignements à compléter'!$BF$16","v":0}]
[null,null,null,null,null,0,0,null,{"$f":"'Renseignements à compléter'!$BF$16","v":0}]
[null,null,null,null,null,0,0,null,{"$f":"'Renseignements à compléter'!$BF$16","v":0}]
[null,null,null,null,null,0,0,null,{"$f":"'Renseignements à compléter'!$BF$16","v":0}]
[null,null,null,null,null,0,0,null,{"$f":"'Renseignements à compléter'!$BF$16","v":0}]
[null,null,null,null,null,0,0,null,{"$f":"'Renseignements à compléter'!$BF$16","v":0}]
[null,null,null,null,null,0,0,null,{"$f":"'Renseignements à compléter'!$BF$16","v":0}]
[null,null,null,null,null,0,0,null,{"$f":"'Renseignements à compléter'!$BF$16","v":0}]
[null,null,null,null,null,0,0,null,{"$f":"'Renseignements à compléter'!$BF$16","v":0}]
[null,null,null,null,null,0,0,null,{"$f":"'Renseignements à compléter'!$BF$16","v":0}]
[null,null,null,null,null,0,0,null,{"$f":"'Renseignements à compléter'!$BF$16","v":0}]
[null,null,null,null,null,0,0,null,{"$f":"'Renseignements à compléter'!$BF$16","v":0}]
[null,null,null,null,null,0,0,null,{"$f":"'Renseignements à compléter'!$BF$16","v":0}]
[null,null,null,null,null,0,0,null,{"$f":"'Renseignements à compléter'!$BF$16","v":0}]
[null,null,null,null,null,{"$f":"MAX(D435-E435,0)","v":0},{"$f":"IF(I435=365,IF(F435<VLOOKUP($C$10,$N$19:$AO$25,28,FALSE),F435,VLOOKUP($C$10,$N$19:$AO$25,28,FALSE)),IF(F435<(VLOOKUP($C$10,$N$19:$AO$25,28,FALSE)*I435/365),F435,VLOOKUP($C$10,$N$19:$AO$25,28,FALSE)*I435/365))","v":0},null,{"$f":"'Renseignements à compléter'!$BF$16","v":0}]
[null,null,null,null,null,0,0,null,{"$f":"'Renseignements à compléter'!$BF$16","v":0}]
[null,null,null,null,null,0,0,null,{"$f":"'Renseignements à compléter'!$BF$16","v":0}]
[null,null,null,null,null,0,0,null,{"$f":"'Renseignements à compléter'!$BF$16","v":0}]
[null,null,null,null,null,0,0,null,{"$f":"'Renseignements à compléter'!$BF$16","v":0}]
[null,null,null,null,null,0,0,null,{"$f":"'Renseignements à compléter'!$BF$16","v":0}]
[null,null,null,null,null,0,0,null,{"$f":"'Renseignements à compléter'!$BF$16","v":0}]
[null,null,null,null,null,0,0,null,{"$f":"'Renseignements à compléter'!$BF$16","v":0}]
[null,null,null,null,null,0,0,null,{"$f":"'Renseignements à compléter'!$BF$16","v":0}]
[null,null,null,null,null,0,0,null,{"$f":"'Renseignements à compléter'!$BF$16","v":0}]
[null,null,null,null,null,0,0,null,{"$f":"'Renseignements à compléter'!$BF$16","v":0}]
[null,null,null,null,null,0,0,null,{"$f":"'Renseignements à compléter'!$BF$16","v":0}]
[null,null,null,null,null,0,0,null,{"$f":"'Renseignements à compléter'!$BF$16","v":0}]
[null,null,null,null,null,0,0,null,{"$f":"'Renseignements à compléter'!$BF$16","v":0}]
[null,null,null,null,null,0,0,null,{"$f":"'Renseignements à compléter'!$BF$16","v":0}]
[null,null,null,null,null,0,0,null,{"$f":"'Renseignements à compléter'!$BF$16","v":0}]
[null,null,null,null,null,0,0,null,{"$f":"'Renseignements à compléter'!$BF$16","v":0}]
[null,null,null,null,null,0,0,null,{"$f":"'Renseignements à compléter'!$BF$16","v":0}]
[null,null,null,null,null,0,0,null,{"$f":"'Renseignements à compléter'!$BF$16","v":0}]
[null,null,null,null,null,0,0,null,{"$f":"'Renseignements à compléter'!$BF$16","v":0}]
[null,null,null,null,null,0,0,null,{"$f":"'Renseignements à compléter'!$BF$16","v":0}]
[null,null,null,null,null,0,0,null,{"$f":"'Renseignements à compléter'!$BF$16","v":0}]
[null,null,null,null,null,0,0,null,{"$f":"'Renseignements à compléter'!$BF$16","v":0}]
[null,null,null,null,null,0,0,null,{"$f":"'Renseignements à compléter'!$BF$16","v":0}]
[null,null,null,null,null,0,0,null,{"$f":"'Renseignements à compléter'!$BF$16","v":0}]
[null,null,null,null,null,0,0,null,{"$f":"'Renseignements à compléter'!$BF$16","v":0}]
[null,null,null,null,null,0,0,null,{"$f":"'Renseignements à compléter'!$BF$16","v":0}]
[null,null,null,null,null,0,0,null,{"$f":"'Renseignements à compléter'!$BF$16","v":0}]
[null,null,null,null,null,0,0,null,{"$f":"'Renseignements à compléter'!$BF$16","v":0}]
[null,null,null,null,null,0,0,null,{"$f":"'Renseignements à compléter'!$BF$16","v":0}]
[null,null,null,null,null,0,0,null,{"$f":"'Renseignements à compléter'!$BF$16","v":0}]
[null,null,null,null,null,0,0,null,{"$f":"'Renseignements à compléter'!$BF$16","v":0}]
[null,null,null,null,null,0,0,null,{"$f":"'Renseignements à compléter'!$BF$16","v":0}]
[null,null,null,null,null,0,0,null,{"$f":"'Renseignements à compléter'!$BF$16","v":0}]
[null,null,null,null,null,0,0,null,{"$f":"'Renseignements à compléter'!$BF$16","v":0}]
[null,null,null,null,null,0,0,null,{"$f":"'Renseignements à compléter'!$BF$16","v":0}]
[null,null,null,null,null,0,0,null,{"$f":"'Renseignements à compléter'!$BF$16","v":0}]
[null,null,null,null,null,0,0,null,{"$f":"'Renseignements à compléter'!$BF$16","v":0}]
[null,null,null,null,null,0,0,null,{"$f":"'Renseignements à compléter'!$BF$16","v":0}]
[null,null,null,null,null,0,0,null,{"$f":"'Renseignements à compléter'!$BF$16","v":0}]
[null,null,null,null,null,0,0,null,{"$f":"'Renseignements à compléter'!$BF$16","v":0}]
[null,null,null,null,null,0,0,null,{"$f":"'Renseignements à compléter'!$BF$16","v":0}]
[null,null,null,null,null,0,0,null,{"$f":"'Renseignements à compléter'!$BF$16","v":0}]
[null,null,null,null,null,0,0,null,{"$f":"'Renseignements à compléter'!$BF$16","v":0}]
[null,null,null,null,null,0,0,null,{"$f":"'Renseignements à compléter'!$BF$16","v":0}]
[null,null,null,null,null,0,0,null,{"$f":"'Renseignements à compléter'!$BF$16","v":0}]
[null,null,null,null,null,0,0,null,{"$f":"'Renseignements à compléter'!$BF$16","v":0}]
[null,null,null,null,null,0,0,null,{"$f":"'Renseignements à compléter'!$BF$16","v":0}]
[null,null,null,null,null,0,0,null,{"$f":"'Renseignements à compléter'!$BF$16","v":0}]
[null,null,null,null,null,0,0,null,{"$f":"'Renseignements à compléter'!$BF$16","v":0}]
[null,null,null,null,null,0,0,null,{"$f":"'Renseignements à compléter'!$BF$16","v":0}]
[null,null,null,null,null,0,0,null,{"$f":"'Renseignements à compléter'!$BF$16","v":0}]
[null,null,null,null,null,0,0,null,{"$f":"'Renseignements à compléter'!$BF$16","v":0}]
[null,null,null,null,null,0,0,null,{"$f":"'Renseignements à compléter'!$BF$16","v":0}]
[null,null,null,null,null,0,0,null,{"$f":"'Renseignements à compléter'!$BF$16","v":0}]
[null,null,null,null,null,0,0,null,{"$f":"'Renseignements à compléter'!$BF$16","v":0}]
[null,null,null,null,null,0,0,null,{"$f":"'Renseignements à compléter'!$BF$16","v":0}]
[null,null,null,null,null,0,0,null,{"$f":"'Renseignements à compléter'!$BF$16","v":0}]
[null,null,null,null,null,0,0,null,{"$f":"'Renseignements à compléter'!$BF$16","v":0}]
[null,null,null,null,null,0,0,null,{"$f":"'Renseignements à compléter'!$BF$16","v":0}]
[null,null,null,null,null,0,0,null,{"$f":"'Renseignements à compléter'!$BF$16","v":0}]
[null,null,null,null,null,0,0,null,{"$f":"'Renseignements à compléter'!$BF$16","v":0}]
[null,null,null,null,null,0,0,null,{"$f":"'Renseignements à compléter'!$BF$16","v":0}]
[null,null,null,null,null,0,0,null,{"$f":"'Renseignements à compléter'!$BF$16","v":0}]
[null,null,null,null,null,{"$f":"MAX(D499-E499,0)","v":0},{"$f":"IF(I499=365,IF(F499<VLOOKUP($C$10,$N$19:$AO$25,28,FALSE),F499,VLOOKUP($C$10,$N$19:$AO$25,28,FALSE)),IF(F499<(VLOOKUP($C$10,$N$19:$AO$25,28,FALSE)*I499/365),F499,VLOOKUP($C$10,$N$19:$AO$25,28,FALSE)*I499/365))","v":0},null,{"$f":"'Renseignements à compléter'!$BF$16","v":0}]
[null,null,null,null,null,0,0,null,{"$f":"'Renseignements à compléter'!$BF$16","v":0}]

{"sheet":"Année 2 - à compléter","index":3,"n_rows":500,"n_cols":41,"rows_kept":500,"cut":false,"hidden":false,"merged":[[33,1,33,4],[34,1,34,4],[45,8,46,8],[47,1,47,2],[129,14,130,14],[42,1,42,7],[45,1,46,1],[45,2,46,2],[45,3,46,3],[45,4,46,4],[45,5,46,5],[45,6,46,6],[45,7,46,7],[19,1,19,2],[41,1,41,2],[32,1,32,2],[36,1,37,7],[20,1,20,2],[21,1,21,2],[22,1,22,2],[23,1,23,2],[24,1,24,2],[25,1,25,2],[26,1,26,2],[27,1,27,2],[28,1,28,2],[29,1,29,2],[30,1,30,2],[31,1,31,2],[10,2,10,8],[11,2,13,8],[14,2,14,8],[16,1,16,8],[18,1,18,5],[0,0,0,2],[4,0,4,8],[5,0,5,8],[6,1,6,2],[3,5,3,8]]}
[]
[null,null,null,null,null,null,null,null,"Financement des crédits d'impôt remboursables relatifs :  ",null,null,null,null,null,null,null,null,{"$f":"J22","v":0}]
[null,null,null,null,null,null,null,null," ̶  à l'économie du savoir  "]
[null,null,null,null,null," – aux entreprises de la presse d'information écrite  "]
["DEMANDE DE GARANTIE / PRÊT"]
["Calculs relatifs aux crédit d'impôts à financer (année 2)"]
[null,{"$f":"'Renseignements à compléter'!H23","v":0},null,null,null,null,{"$f":"'Renseignements à compléter'!J5&'Renseignements à compléter'!L5","v":""},null,{"$f":"'Renseignements à compléter'!O5&'Renseignements à compléter'!P5","v":""}]
[]
["1.","ÉVALUATION DES CRÉDITS D'IMPÔT À FINANCER",null,null,null,null,null,null,null,null,"(SAUF PTM,SAT,CDB et CDAE)"]
[null,null,null,null,null,null,null,null,null,null,"Aucun crédit d'impôt sélectionné","Veuillez sélectionner le crédit d'impôt visé par la présente demande à l'onglet Renseignements à compléter"]
[null,"Crédit d'impôt visé :",{"$f":"IF('Renseignements à compléter'!W11=\"++++++++++     (Cliquez ici pour choisir le crédit d'impôt)     ++++++++++\",\"Aucun crédit d'impôt sélectionné\",'Renseignements à compléter'!W11)","v":"Aucun crédit d'impôt sélectionné"},null,null,null,null,null,null,null,"Développement des affaires électroniques (CDAE) - Mesure fiscale permanente"]
[null,null,{"$f":"VLOOKUP($C$11,$K$10:$L$22,2,FALSE)","v":"Veuillez sélectionner le crédit d'impôt visé par la présente demande à l'onglet Renseignements à compléter"},null,null,null,null,null,null,null,"Production de titres multimédias (PTM) – Mesure fiscale permanente"]
[null,null,null,null,null,null,null,null,null,null,"Services d’adaptation technologique (SAT) – Mesure fiscale permanente","Une dépense n'est pas admissible au crédit d'impôt SAT si cette dépense est admissible aux crédits suivants: crédit d'impôt relatif aux salaires R-D, crédits d'impôt pour la recherche universitaire ou la recherche effectuée par un centre de recherche publique ou consortium de recherche ou pour la recherche précompétitive en partenariat privé."]
[null,"Endroit où seront",null,null,null,null,null,null,null,null,"Carrefours de la nouvelle économie (CNE) – Échéance le 2013-12-31","Veuillez noter que ce crédit ne peut être réclamé si le CDAE est réclamé et ce également pour toute société associée"]
[null,"réalisées les activités :",null,null,null,null,null,null,null,null,"Cité du multimédia (CMM) – Échéance le 2013-12-31","Veuillez noter que ce crédit ne peut être réclamé si le CDAE est réclamé et ce également pour toute société associée"]
[null,null,null,null,null,null,null,null,null,null,"Centre national des nouvelles technologies de Québec (CNNTQ) – Échéance le 2013-12-31","Veuillez noter que ce crédit ne peut être réclamé si le CDAE est réclamé et ce également pour toute société associée"]
[null,"Note : Le tableau de la section 2 ci-dessous doit être utilisé pour établir les coûts relatifs aux salaires. (Sauf pour le crédit SAT)",null,null,null,null,null,null,null,null,"Centres de développement des technologies de l’information (CDTI) – Échéance le 2013-12-31","Veuillez noter que ce crédit ne peut être réclamé si le CDAE est réclamé et ce également pour toute société associée"]
[null,null,null,null,null,null,null,null,null,null,"Centres de développement des biotechnologies (CDB) - Échéance le 2013-12-31"]
[null,{"$f":"IF(C11=N27,\"Exercise financier \",CONCATENATE(\"Exercice financier \",IF(AND('Renseignements à compléter'!L16<>0,'Renseignements à compléter'!L17<>0),(CONCATENATE(\"(du \",YEAR('Renseignements à compléter'!L16),\"-\",IF(MONTH('Renseignements à compléter'!L16)<10,CONCATENATE(\"0\",MONTH('Renseignements à compléter'!L16)),MONTH('Renseignements à compléter'!L16)),\"-\",IF(DAY('Renseignements à compléter'!L16)<10,CONCATENATE(\"0\",DAY('Renseignements à compléter'!L16)),DAY('Renseignements à compléter'!L16)),\" au \",YEAR('Renseignements à compléter'!L17),\"-\",IF(MONTH('Renseignements à compléter'!L17)<10,CONCATENATE(\"0\",MONTH('Renseignements à compléter'!L17)),MONTH('Renseignements à compléter'!L17)),\"-\",IF(DAY('Renseignements à compléter'!L17)<10,CONCATENATE(\"0\",DAY('Renseignements à compléter'!L17)),DAY('Renseignements à compléter'!L17)),\")\")),\"(du ______________ au _____________ )\")))","v":"Exercice financier (du ______________ au _____________ )"},null,null,null,null,null,null,null,null,"Cité du commerce électronique (CCE) – Échéance le 2013-12-31","Veuillez noter que ce crédit ne peut être réclamé si le CDAE est réclamé et ce également pour toute société associée",null,"Colonne 1","Colonne 2","Colonne 3","Colonne 4","Colonne 5","Colonne 6","Colonne 7","Colonne 8","Colonne 9","Colonne 10","Colonne 11","Colonne 12","Colonne 13","Colonne 14","Colonne 15","Colonne 16","Colonne 17","Colonne 18","Colonne 19","Colonne 20","Colonne 21","Colonne 22","Colonne 23","Colonne 24","Colonne 25","Colonne 26","Colonne 27","Colonne 28"]
[null,{"$f":"VLOOKUP($C$11,$N$20:$AM$32,2,FALSE)","v":"Aucun crédit d'impôt sélectionné"},null,"Coûts admissibles ($)","% Crédits d'impôt applicables","Crédits d'impôt à financer ($)",null,null,null,null,"Pour appuyer à la transformation numérique des entreprises de la presse d'information écrite  (CTNP) - échéance le 31 décembre 2023",null,null,"Aucun crédit d'impôt sélectionné","Aucun crédit d'impôt sélectionné"]
[null,{"$f":"VLOOKUP($C$11,$N$20:$AM$32,3,FALSE)","v":0},null,{"$f":"G48","v":0},{"$f":"VLOOKUP($C$11,N$20:AM$32,4,FALSE)","v":0},{"$f":"(D21*E21)","v":0},null,null,null,null,"Soutien à la presse d'information écrite (CPIE)","Le salaire admissible doit être réduit de toute aide gouvernementale sauf un montant réputé payé au titre de l'impôt fédéral sur le revenu en application du crédit d'impôt remboursable pour la main-d'œuvre accordé à une organisation journalistique admissible.",null,"Développement des affaires électroniques (CDAE) - Mesure fiscale permanente","CDAE (attestation requise)\nNote: Seule la portion remboursable du crédit d'impôt peut faire l'objet d'un financement.","Salaires admissibles",0.24,"- moins: Salaires admissibles engagés relatifs aux contrats gouvernementaux non admissibles conclus/renouvelés après le 30 septembre 2015 (s'ils sont inclus à la ligne précédente)",-0.24,"- moins: Aide gouvernementale ou non gouvernementale",-0.24,null,null,null,null,null,null,null,null,null,null,null,null,null,null,null,null,null,null,"83 333 $",83333]
[null,{"$f":"VLOOKUP($C$11,$N$20:$AM$32,5,FALSE)","v":0},null,null,{"$f":"VLOOKUP($C$11,N$20:AM$32,6,FALSE)","v":0},0,null,null,null,null,"Crédit d’impôt pour la main-d’œuvre journalistique canadienne (CMOJC)","Le crédit MOJC est applicable à partir du 1er janvier 2019. Le salaire admissible doit être réduit par tout montant d'aide reçu par l'organisation ou qu'elle peut raisonnablement s'attendre à recevoir relativement aux salaires ou traitements payables pour cet employé pour l'année d'imposition. Par exemple, un crédit d'impôt provincial obtenu sur la même dépense de main-d'oeuvre admissible serait généralement considéré comme un montant d'aide.",null,"Production de titres multimédias (PTM) – Mesure fiscale permanente","PTM (attestation requise)                             ","Titre destiné à être commercialisé disponible en français et qui n'est pas un titre de formation professionnelle             \n        - Salaires",0.375,"        - Salaires sous-traitance - liées",0.375,"        - Salaires sous-traitance - non liées",0.1875,"moins: Aide gouvernementale ou non gouvernementale",-0.375,"Titre destiné à être commercialisé non disponible en français et qui n'est pas un titre de formation professionnelle\n        - Salaires",0.3,"        - Salaires sous-traitance - liées",0.3,"        - Salaires sous-traitance - non liées",0.15,"moins: Aide gouvernementale ou non gouvernementale",-0.3,"        - Autres titres - Salaires",0.26250000000000001,"        - Salaires sous-traitances - liées",0.26250000000000001,"        - Salaires sous-traitance - non liées",0.13125000000000001,"moins: Aide gouvernementale ou non gouvernementale",-0.26250000000000001,"100 000 $ sauf exception*",100000]
[null,{"$f":"VLOOKUP($C$11,$N$20:$AM$32,7,FALSE)","v":0},null,null,{"$f":"VLOOKUP($C$11,N$20:AM$32,8,FALSE)","v":0},0,null,null,null,null,null,null,null,"Services d’adaptation technologique (SAT) – Mesure fiscale permanente","SAT                                                                                    Note: dépenses admissible engagées auprès d'un centre collégial de transfert de technologie ou d'un centre de liaison et de transfert","Dépenses admissibles - Activité formation/information \n        - Contrat conclu avant le 4 juin 2014",0.5,"        - Frais d'abonnement",0.5,"        - 80% des honoraires",0.5,"moins: Aide gouvernementale ou non gouvernementale",-0.5,"Dépenses admissibles - Activité formation/information \n        - Contrat conclu après le 3 juin 2014",0.4,"        - Frais d'abonnement",0.4,"        - 80% des honoraires",0.4,"moins: Aide gouvernementale ou non gouvernementale",-0.4,null,null,null,null,null,null,null,null,"aucun maximum"]
[null,{"$f":"VLOOKUP($C$11,$N$20:$AM$32,9,FALSE)","v":0},null,null,{"$f":"VLOOKUP($C$11,N$20:AM$32,10,FALSE)","v":0},0,null,null,null,null,null,null,null,"Pour appuyer à la transformation numérique des entreprises de la presse d'information écrite (CTNP) - échéance le 31 décembre 2023","Salaires et dépenses engagés pour l'amorce ou la poursuite de la conversion numérique d'un média écrit admisibles après le 27 mars 2018","Salaires admissibles ",0.35,"- moins: Aide gouvernementale et non gouvernementale",-0.35,"Acquisition ou location d'un bien admissible",0.28000000000000003,"Licence ou attribution d'un droit d'utilisation d'un bien (matériel électronique de traitement de l'information et logiciels)",0.28000000000000003,"Sous-traitants - fournitures de services de conversion numérique",0.28000000000000003,"- moins: Aide gouvernementale ou non gouvernementale",-0.28000000000000003,null,null,null,null,null,null,null,null,null,null,null,null,"aucun maximum"]
[null,{"$f":"VLOOKUP($C$11,$N$20:$AM$32,11,FALSE)","v":0},null,null,{"$f":"VLOOKUP($C$11,N$20:AM$32,12,FALSE)","v":0},0,null,null,null,null,null,null,null,"Soutien à la presse d'information écrite (CPIE)","Salaires engagés après le 31 décembre 2018","Salaires admissibles ",0.35,"- moins: Aide gouvernementale et non gouvernementale",-0.35,null,null,null,null,null,null,null,null,null,null,null,null,null,null,null,null,null,null,null,null,"75 000 $",75000]
[null,{"$f":"VLOOKUP($C$11,$N$20:$AM$32,13,FALSE)","v":0},null,null,{"$f":"VLOOKUP($C$11,N$20:AM$32,14,FALSE)","v":0},0,null,null,null,null,null,null,null,"Crédit d’impôt pour la main-d’œuvre journalistique canadienne (CMOJC)","Salaires engagés après le 31 décembre 2018","Salaires admissibles ",0.25,null,null,null,null,null,null,null,null,null,null,null,null,null,null,null,null,null,null,null,null,null,null,"55 000 $",55000]
[null,{"$f":"VLOOKUP($C$11,$N$20:$AM$32,15,FALSE)","v":0},null,null,{"$f":"VLOOKUP($C$11,N$20:AM$32,16,FALSE)","v":0},0]
[null,{"$f":"VLOOKUP($C$11,$N$20:$AM$32,17,FALSE)","v":0},null,null,{"$f":"VLOOKUP($C$11,N$20:AM$32,18,FALSE)","v":0},0]
[null,{"$f":"VLOOKUP($C$11,$N$20:$AM$32,19,FALSE)","v":0},null,null,{"$f":"VLOOKUP($C$11,N$20:AM$32,20,FALSE)","v":0},0]
[null,{"$f":"VLOOKUP($C$11,$N$20:$AM$32,21,FALSE)","v":0},null,null,{"$f":"VLOOKUP($C$11,N$20:AM$32,22,FALSE)","v":0},0]
[null,{"$f":"VLOOKUP($C$11,$N$20:$AM$32,23,FALSE)","v":0},null,null,{"$f":"VLOOKUP($C$11,N$20:AM$32,24,FALSE)","v":0},0]
[null,{"$f":"VLOOKUP($C$11,$N$20:$AM$32,25,FALSE)","v":0},null,null,{"$f":"VLOOKUP($C$11,$N$20:$AM$32,26,FALSE)","v":0},0]
[null,"Coût total admissible du projet (à calculer) : ",null,null,null,{"$f":"SUM(F21:F32)","v":0}]
[null,"Moins impôt à payer, déduction faite des accomptes provisionnels :"]
[null,"Total des crédits d'impôt à financer : ",null,null,null,{"$f":"MAX(F33-F34,0)","v":0}]
[]
[null,"* Le résultat final du calcul des crédits d'impôt tel qu'accepté par l'Agence du revenu du Canada ou de Revenu Québec pourrait différer de ce montant en raison de situations particulières. Veuillez noter que les calculs sont fournis à titre indicatif seulement et n'engage nullement Investissement Québec."]
[]
[]
[]
[]
["2.","LISTE DES EMPLOYÉS ADMISSIBLES"]
[null,"Note : Veuillez vous référer au formulaire de l'Agence du revenu du Canada ou celui de Revenu Québec correspondant à chaque crédit d'impôt pour vous aider à effectuer le calcul des salaires admissibles (voir la bulle explicative de cette colonne pour obtenir le numéro des formulaires). Si vous utilisez un tableau externe de calcul, veuillez nous le faire parvenir."]
[]
[null,{"$f":"CONCATENATE(\"Exercice financier \",IF(AND('Renseignements à compléter'!L16<>0,'Renseignements à compléter'!L17<>0),(CONCATENATE(\"(du \",YEAR('Renseignements à compléter'!L16),\"-\",IF(MONTH('Renseignements à compléter'!L16)<10,CONCATENATE(\"0\",MONTH('Renseignements à compléter'!L16)),MONTH('Renseignements à compléter'!L16)),\"-\",IF(DAY('Renseignements à compléter'!L16)<10,CONCATENATE(\"0\",DAY('Renseignements à compléter'!L16)),DAY('Renseignements à compléter'!L16)),\" au \",YEAR('Renseignements à compléter'!L17),\"-\",IF(MONTH('Renseignements à compléter'!L17)<10,CONCATENATE(\"0\",MONTH('Renseignements à compléter'!L17)),MONTH('Renseignements à compléter'!L17)),\"-\",IF(DAY('Renseignements à compléter'!L17)<10,CONCATENATE(\"0\",DAY('Renseignements à compléter'!L17)),DAY('Renseignements à compléter'!L17)),\")\")),\"(du ______________ au _____________ )\"))","v":"Exercice financier (du ______________ au _____________ )"}]
[null,"Employés admissibles","Fonction","Salaires versés","Montants d'aide reçus","Salaires versés nets des montants d'aide reçus",{"$f":"IF(C11=N20,\"Salaires admissibles ($)\",CONCATENATE(\"Salaires admissibles \n($) \n(Max: \",VLOOKUP($C$11,$N$21:$AN$32,27,FALSE),\")\"))","v":"Salaires admissibles ($)"},"Nombre de semaines à l’emploi ","Nombre de jours dans l'exercice "]
[]
[null,"TOTAL :  ",null,{"$f":"SUM(D50:D500)","v":0},{"$f":"SUM(E50:E500)","v":0},{"$f":"SUM(F50:F500)","v":0},{"$f":"SUM(G50:G500)","v":0},{"$f":"SUM(H50:H500)","v":0},{"$f":"'Renseignements à compléter'!$BG$16","v":0}]
[]
[null,null,null,null,null,{"$f":"MAX(D50-E50,0)","v":0},{"$f":"IF(I50=365,IF(F50<VLOOKUP($C$11,$N$20:$AO$26,28,FALSE),F50,VLOOKUP($C$11,$N$20:$AO$26,28,FALSE)),IF(F50<(VLOOKUP($C$11,$N$20:$AO$26,28,FALSE)*I50/365),F50,VLOOKUP($C$11,$N$20:$AO$26,28,FALSE)*I50/365))","v":0},null,{"$f":"'Renseignements à compléter'!$BG$16","v":0}]
[null,null,null,null,null,{"$f":"MAX(D51-E51,0)","v":0},{"$f":"IF(I51=365,IF(F51<VLOOKUP($C$11,$N$20:$AO$26,28,FALSE),F51,VLOOKUP($C$11,$N$20:$AO$26,28,FALSE)),IF(F51<(VLOOKUP($C$11,$N$20:$AO$26,28,FALSE)*I51/365),F51,VLOOKUP($C$11,$N$20:$AO$26,28,FALSE)*I51/365))","v":0},null,{"$f":"'Renseignements à compléter'!$BG$16","v":0}]
[null,null,null,null,null,0,0,null,{"$f":"'Renseignements à compléter'!$BG$16","v":0}]
[null,null,null,null,null,0,0,null,{"$f":"'Renseignements à compléter'!$BG$16","v":0}]
[null,null,null,null,null,0,0,null,{"$f":"'Renseignements à compléter'!$BG$16","v":0}]
[null,null,null,null,null,0,0,null,{"$f":"'Renseignements à compléter'!$BG$16","v":0}]
[null,null,null,null,null,0,0,null,{"$f":"'Renseignements à compléter'!$BG$16","v":0}]
[null,null,null,null,null,0,0,null,{"$f":"'Renseignements à compléter'!$BG$16","v":0}]
[null,null,null,null,null,0,0,null,{"$f":"'Renseignements à compléter'!$BG$16","v":0}]
[null,null,null,null,null,0,0,null,{"$f":"'Renseignements à compléter'!$BG$16","v":0}]
[null,null,null,null,null,0,0,null,{"$f":"'Renseignements à compléter'!$BG$16","v":0}]
[null,null,null,null,null,0,0,null,{"$f":"'Renseignements à compléter'!$BG$16","v":0}]
[null,null,null,null,null,0,0,null,{"$f":"'Renseignements à compléter'!$BG$16","v":0}]
[null,null,null,null,null,0,0,null,{"$f":"'Renseignements à compléter'!$BG$16","v":0}]
[null,null,null,null,null,0,0,null,{"$f":"'Renseignements à compléter'!$BG$16","v":0}]
[null,".",null,null,null,0,0,null,{"$f":"'Renseignements à compléter'!$BG$16","v":0}]
[null,null,null,null,null,0,0,null,{"$f":"'Renseignements à compléter'!$BG$16","v":0}]
[null,null,null,null,null,0,0,null,{"$f":"'Renseignements à compléter'!$BG$16","v":0}]
[null,null,null,null,null,0,0,null,{"$f":"'Renseignements à compléter'!$BG$16","v":0}]
[null,null,null,null,null,0,0,null,{"$f":"'Renseignements à compléter'!$BG$16","v":0}]
[null,null,null,null,null,0,0,null,{"$f":"'Renseignements à compléter'!$BG$16","v":0}]
[null,null,null,null,null,0,0,null,{"$f":"'Renseignements à compléter'!$BG$16","v":0}]
[null,null,null,null,null,0,0,null,{"$f":"'Renseignements à compléter'!$BG$16","v":0}]
[null,null,null,null,null,0,0,null,{"$f":"'Renseignements à compléter'!$BG$16","v":0}]
[null,null,null,null,null,0,0,null,{"$f":"'Renseignements à compléter'!$BG$16","v":0}]
[null,null,null,null,null,0,0,null,{"$f":"'Renseignements à compléter'!$BG$16","v":0}]
[null,null,null,null,null,0,0,null,{"$f":"'Renseignements à compléter'!$BG$16","v":0}]
[null,null,null,null,null,0,0,null,{"$f":"'Renseignements à compléter'!$BG$16","v":0}]
[null,null,null,null,null,0,0,null,{"$f":"'Renseignements à compléter'!$BG$16","v":0}]
[null,null,null,null,null,0,0,null,{"$f":"'Renseignements à compléter'!$BG$16","v":0}]
[null,null,null,null,null,0,0,null,{"$f":"'Renseignements à compléter'!$BG$16","v":0}]
[null,null,null,null,null,0,0,null,{"$f":"'Renseignements à compléter'!$BG$16","v":0}]
[null,null,null,null,null,0,0,null,{"$f":"'Renseignements à compléter'!$BG$16","v":0}]
[null,null,null,null,null,0,0,null,{"$f":"'Renseignements à compléter'!$BG$16","v":0}]
[null,null,null,null,null,0,0,null,{"$f":"'Renseignements à compléter'!$BG$16","v":0}]
[null,null,null,null,null,0,0,null,{"$f":"'Renseignements à compléter'!$BG$16","v":0}]
[null,null,null,null,null,0,0,null,{"$f":"'Renseignements à compléter'!$BG$16","v":0}]
[null,null,null,null,null,0,0,null,{"$f":"'Renseignements à compléter'!$BG$16","v":0}]
[null,null,null,null,null,0,0,null,{"$f":"'Renseignements à compléter'!$BG$16","v":0}]
[null,null,null,null,null,0,0,null,{"$f":"'Renseignements à compléter'!$BG$16","v":0}]
[null,null,null,null,null,0,0,null,{"$f":"'Renseignements à compléter'!$BG$16","v":0}]
[null,null,null,null,null,0,0,null,{"$f":"'Renseignements à compléter'!$BG$16","v":0}]
[null,null,null,null,null,0,0,null,{"$f":"'Renseignements à compléter'!$BG$16","v":0}]
[null,null,null,null,null,0,0,null,{"$f":"'Renseignements à compléter'!$BG$16","v":0}]
[null,null,null,null,null,0,0,null,{"$f":"'Renseignements à compléter'!$BG$16","v":0}]
[null,null,null,null,null,0,0,null,{"$f":"'Renseignements à compléter'!$BG$16","v":0}]
[null,null,null,null,null,0,0,null,{"$f":"'Renseignements à compléter'!$BG$16","v":0}]
[null,null,null,null,null,0,0,null,{"$f":"'Renseignements à compléter'!$BG$16","v":0}]
[null,null,null,null,null,0,0,null,{"$f":"'Renseignements à compléter'!$BG$16","v":0}]
[null,null,null,null,null,0,0,null,{"$f":"'Renseignements à compléter'!$BG$16","v":0}]
[null,null,null,null,null,0,0,null,{"$f":"'Renseignements à compléter'!$BG$16","v":0}]
[null,null,null,null,null,0,0,null,{"$f":"'Renseignements à compléter'!$BG$16","v":0}]
[null,null,null,null,null,0,0,null,{"$f":"'Renseignements à compléter'!$BG$16","v":0}]
[null,null,null,null,null,0,0,null,{"$f":"'Renseignements à compléter'!$BG$16","v":0}]
[null,null,null,null,null,0,0,null,{"$f":"'Renseignements à compléter'!$BG$16","v":0}]
[null,null,null,null,null,0,0,null,{"$f":"'Renseignements à compléter'!$BG$16","v":0}]
[null,null,null,null,null,0,0,null,{"$f":"'Renseignements à compléter'!$BG$16","v":0}]
[null,null,null,null,null,0,0,null,{"$f":"'Renseignements à compléter'!$BG$16","v":0}]
[null,null,null,null,null,0,0,null,{"$f":"'Renseignements à compléter'!$BG$16","v":0}]
[null,null,null,null,null,0,0,null,{"$f":"'Renseignements à compléter'!$BG$16","v":0}]
[null,null,null,null,null,0,0,null,{"$f":"'Renseignements à compléter'!$BG$16","v":0}]
[null,null,null,null,null,0,0,null,{"$f":"'Renseignements à compléter'!$BG$16","v":0}]
[null,null,null,null,null,0,0,null,{"$f":"'Renseignements à compléter'!$BG$16","v":0}]
[null,null,null,null,null,0,0,null,{"$f":"'Renseignements à compléter'!$BG$16","v":0}]
[null,null,null,null,null,0,0,null,{"$f":"'Renseignements à compléter'!$BG$16","v":0}]
[null,null,null,null,null,{"$f":"MAX(D115-E115,0)","v":0},{"$f":"IF(I115=365,IF(F115<VLOOKUP($C$11,$N$20:$AO$26,28,FALSE),F115,VLOOKUP($C$11,$N$20:$AO$26,28,FALSE)),IF(F115<(VLOOKUP($C$11,$N$20:$AO$26,28,FALSE)*I115/365),F115,VLOOKUP($C$11,$N$20:$AO$26,28,FALSE)*I115/365))","v":0},null,{"$f":"'Renseignements à compléter'!$BG$16","v":0}]
[null,null,null,null,null,0,0,null,{"$f":"'Renseignements à compléter'!$BG$16","v":0}]
[null,null,null,null,null,0,0,null,{"$f":"'Renseignements à compléter'!$BG$16","v":0}]
[null,null,null,null,null,0,0,null,{"$f":"'Renseignements à compléter'!$BG$16","v":0}]
[null,null,null,null,null,0,0,null,{"$f":"'Renseignements à compléter'!$BG$16","v":0}]
[null,null,null,null,null,0,0,null,{"$f":"'Renseignements à compléter'!$BG$16","v":0}]
[null,null,null,null,null,0,0,null,{"$f":"'Renseignements à compléter'!$BG$16","v":0}]
[null,null,null,null,null,0,0,null,{"$f":"'Renseignements à compléter'!$BG$16","v":0}]
[null,null,null,null,null,0,0,null,{"$f":"'Renseignements à compléter'!$BG$16","v":0}]
[null,null,null,null,null,0,0,null,{"$f":"'Renseignements à compléter'!$BG$16","v":0}]
[null,null,null,null,null,0,0,null,{"$f":"'Renseignements à compléter'!$BG$16","v":0}]
[null,null,null,null,null,0,0,null,{"$f":"'Renseignements à compléter'!$BG$16","v":0}]
[null,null,null,null,null,0,0,null,{"$f":"'Renseignements à compléter'!$BG$16","v":0}]
[null,null,null,null,null,0,0,null,{"$f":"'Renseignements à compléter'!$BG$16","v":0}]
[null,null,null,null,null,0,0,null,{"$f":"'Renseignements à compléter'!$BG$16","v":0}]
[null,null,null,null,null,0,0,null,{"$f":"'Renseignements à compléter'!$BG$16","v":0}]
[null,null,null,null,null,0,0,null,{"$f":"'Renseignements à compléter'!$BG$16","v":0}]
[null,null,null,null,null,0,0,null,{"$f":"'Renseignements à compléter'!$BG$16","v":0}]
[null,null,null,null,null,0,0,null,{"$f":"'Renseignements à compléter'!$BG$16","v":0}]
[null,null,null,null,null,0,0,null,{"$f":"'Renseignements à compléter'!$BG$16","v":0}]
[null,null,null,null,null,0,0,null,{"$f":"'Renseignements à compléter'!$BG$16","v":0}]
[null,null,null,null,null,0,0,null,{"$f":"'Renseignements à compléter'!$BG$16","v":0}]
[null,null,null,null,null,0,0,null,{"$f":"'Renseignements à compléter'!$BG$16","v":0}]
[null,null,null,null,null,0,0,null,{"$f":"'Renseignements à compléter'!$BG$16","v":0}]
[null,null,null,null,null,0,0,null,{"$f":"'Renseignements à compléter'!$BG$16","v":0}]
[null,null,null,null,null,0,0,null,{"$f":"'Renseignements à compléter'!$BG$16","v":0}]
[null,null,null,null,null,0,0,null,{"$f":"'Renseignements à compléter'!$BG$16","v":0}]
[null,null,null,null,null,0,0,null,{"$f":"'Renseignements à compléter'!$BG$16","v":0}]
[null,null,null,null,null,0,0,null,{"$f":"'Renseignements à compléter'!$BG$16","v":0}]
[null,null,null,null,null,0,0,null,{"$f":"'Renseignements à compléter'!$BG$16","v":0}]
[null,null,null,null,null,0,0,null,{"$f":"'Renseignements à compléter'!$BG$16","v":0}]
[null,null,null,null,null,0,0,null,{"$f":"'Renseignements à compléter'!$BG$16","v":0}]
[null,null,null,null,null,0,0,null,{"$f":"'Renseignements à compléter'!$BG$16","v":0}]
[null,null,null,null,null,0,0,null,{"$f":"'Renseignements à compléter'!$BG$16","v":0}]
[null,null,null,null,null,0,0,null,{"$f":"'Renseignements à compléter'!$BG$16","v":0}]
[null,null,null,null,null,0,0,null,{"$f":"'Renseignements à compléter'!$BG$16","v":0}]
[null,null,null,null,null,0,0,null,{"$f":"'Renseignements à compléter'!$BG$16","v":0}]
[null,null,null,null,null,0,0,null,{"$f":"'Renseignements à compléter'!$BG$16","v":0}]
[null,null,null,null,null,0,0,null,{"$f":"'Renseignements à compléter'!$BG$16","v":0}]
[null,null,null,null,null,0,0,null,{"$f":"'Renseignements à compléter'!$BG$16","v":0}]
[null,null,null,null,null,0,0,null,{"$f":"'Renseignements à compléter'!$BG$16","v":0}]
[null,null,null,null,null,0,0,null,{"$f":"'Renseignements à compléter'!$BG$16","v":0}]
[null,null,null,null,null,0,0,null,{"$f":"'Renseignements à compléter'!$BG$16","v":0}]
[null,null,null,null,null,0,0,null,{"$f":"'Renseignements à compléter'!$BG$16","v":0}]
[null,null,null,null,null,0,0,null,{"$f":"'Renseignements à compléter'!$BG$16","v":0}]
[null,null,null,null,null,0,0,null,{"$f":"'Renseignements à compléter'!$BG$16","v":0}]
[null,null,null,null,null,0,0,null,{"$f":"'Renseignements à compléter'!$BG$16","v":0}]
[null,null,null,null,null,0,0,null,{"$f":"'Renseignements à compléter'!$BG$16","v":0}]
[null,null,null,null,null,0,0,null,{"$f":"'Renseignements à compléter'!$BG$16","v":0}]
[null,null,null,null,null,0,0,null,{"$f":"'Renseignements à compléter'!$BG$16","v":0}]
[null,null,null,null,null,0,0,null,{"$f":"'Renseignements à compléter'!$BG$16","v":0}]
[null,null,null,null,null,0,0,null,{"$f":"'Renseignements à compléter'!$BG$16","v":0}]
[null,null,null,null,null,0,0,null,{"$f":"'Renseignements à compléter'!$BG$16","v":0}]
[null,null,null,null,null,0,0,null,{"$f":"'Renseignements à compléter'!$BG$16","v":0}]
[null,null,null,null,null,0,0,null,{"$f":"'Renseignements à compléter'!$BG$16","v":0}]
[null,null,null,null,null,0,0,null,{"$f":"'Renseignements à compléter'!$BG$16","v":0}]
[null,null,null,null,null,0,0,null,{"$f":"'Renseignements à compléter'!$BG$16","v":0}]
[null,null,null,null,null,0,0,null,{"$f":"'Renseignements à compléter'!$BG$16","v":0}]
[null,null,null,null,null,0,0,null,{"$f":"'Renseignements à compléter'!$BG$16","v":0}]
[null,null,null,null,null,0,0,null,{"$f":"'Renseignements à compléter'!$BG$16","v":0}]
[null,null,null,null,null,0,0,null,{"$f":"'Renseignements à compléter'!$BG$16","v":0}]
[null,null,null,null,null,0,0,null,{"$f":"'Renseignements à compléter'!$BG$16","v":0}]
[null,null,null,null,null,0,0,null,{"$f":"'Renseignements à compléter'!$BG$16","v":0}]
[null,null,null,null,null,0,0,null,{"$f":"'Renseignements à compléter'!$BG$16","v":0}]
[null,null,null,null,null,{"$f":"MAX(D179-E179,0)","v":0},{"$f":"IF(I179=365,IF(F179<VLOOKUP($C$11,$N$20:$AO$26,28,FALSE),F179,VLOOKUP($C$11,$N$20:$AO$26,28,FALSE)),IF(F179<(VLOOKUP($C$11,$N$20:$AO$26,28,FALSE)*I179/365),F179,VLOOKUP($C$11,$N$20:$AO$26,28,FALSE)*I179/365))","v":0},null,{"$f":"'Renseignements à compléter'!$BG$16","v":0}]
[null,null,null,null,null,0,0,null,{"$f":"'Renseignements à compléter'!$BG$16","v":0}]
[null,null,null,null,null,0,0,null,{"$f":"'Renseignements à compléter'!$BG$16","v":0}]
[null,null,null,null,null,0,0,null,{"$f":"'Renseignements à compléter'!$BG$16","v":0}]
[null,null,null,null,null,0,0,null,{"$f":"'Renseignements à compléter'!$BG$16","v":0}]
[null,null,null,null,null,0,0,null,{"$f":"'Renseignements à compléter'!$BG$16","v":0}]
[null,null,null,null,null,0,0,null,{"$f":"'Renseignements à compléter'!$BG$16","v":0}]
[null,null,null,null,null,0,0,null,{"$f":"'Renseignements à compléter'!$BG$16","v":0}]
[null,null,null,null,null,0,0,null,{"$f":"'Renseignements à compléter'!$BG$16","v":0}]
[null,null,null,null,null,0,0,null,{"$f":"'Renseignements à compléter'!$BG$16","v":0}]
[null,null,null,null,null,0,0,null,{"$f":"'Renseignements à compléter'!$BG$16","v":0}]
[null,null,null,null,null,0,0,null,{"$f":"'Renseignements à compléter'!$BG$16","v":0}]
[null,null,null,null,null,0,0,null,{"$f":"'Renseignements à compléter'!$BG$16","v":0}]
[null,null,null,null,null,0,0,null,{"$f":"'Renseignements à compléter'!$BG$16","v":0}]
[null,null,null,null,null,0,0,null,{"$f":"'Renseignements à compléter'!$BG$16","v":0}]
[null,null,null,null,null,0,0,null,{"$f":"'Renseignements à compléter'!$BG$16","v":0}]
[null,null,null,null,null,0,0,null,{"$f":"'Renseignements à compléter'!$BG$16","v":0}]
[null,null,null,null,null,0,0,null,{"$f":"'Renseignements à compléter'!$BG$16","v":0}]
[null,null,null,null,null,0,0,null,{"$f":"'Renseignements à compléter'!$BG$16","v":0}]
[null,null,null,null,null,0,0,null,{"$f":"'Renseignements à compléter'!$BG$16","v":0}]
[null,null,null,null,null,0,0,null,{"$f":"'Renseignements à compléter'!$BG$16","v":0}]
[null,null,null,null,null,0,0,null,{"$f":"'Renseignements à compléter'!$BG$16","v":0}]
[null,null,null,null,null,0,0,null,{"$f":"'Renseignements à compléter'!$BG$16","v":0}]
[null,null,null,null,null,0,0,null,{"$f":"'Renseignements à compléter'!$BG$16","v":0}]
[null,null,null,null,null,0,0,null,{"$f":"'Renseignements à compléter'!$BG$16","v":0}]
[null,null,null,null,null,0,0,null,{"$f":"'Renseignements à compléter'!$BG$16","v":0}]
[null,null,null,null,null,0,0,null,{"$f":"'Renseignements à compléter'!$BG$16","v":0}]
[null,null,null,null,null,0,0,null,{"$f":"'Renseignements à compléter'!$BG$16","v":0}]
[null,null,null,null,null,0,0,null,{"$f":"'Renseignements à compléter'!$BG$16","v":0}]
[null,null,null,null,null,0,0,null,{"$f":"'Renseignements à compléter'!$BG$16","v":0}]
[null,null,null,null,null,0,0,null,{"$f":"'Renseignements à compléter'!$BG$16","v":0}]
[null,null,null,null,null,0,0,null,{"$f":"'Renseignements à compléter'!$BG$16","v":0}]
[null,null,null,null,null,0,0,null,{"$f":"'Renseignements à compléter'!$BG$16","v":0}]
[null,null,null,null,null,0,0,null,{"$f":"'Renseignements à compléter'!$BG$16","v":0}]
[null,null,null,null,null,0,0,null,{"$f":"'Renseignements à compléter'!$BG$16","v":0}]
[null,null,null,null,null,0,0,null,{"$f":"'Renseignements à compléter'!$BG$16","v":0}]
[null,null,null,null,null,0,0,null,{"$f":"'Renseignements à compléter'!$BG$16","v":0}]
[null,null,null,null,null,0,0,null,{"$f":"'Renseignements à compléter'!$BG$16","v":0}]
[null,null,null,null,null,0,0,null,{"$f":"'Renseignements à compléter'!$BG$16","v":0}]
[null,null,null,null,null,0,0,null,{"$f":"'Renseignements à compléter'!$BG$16","v":0}]
[null,null,null,null,null,0,0,null,{"$f":"'Renseignements à compléter'!$BG$16","v":0}]
[null,null,null,null,null,0,0,null,{"$f":"'Renseignements à compléter'!$BG$16","v":0}]
[null,null,null,null,null,0,0,null,{"$f":"'Renseignements à compléter'!$BG$16","v":0}]
[null,null,null,null,null,0,0,null,{"$f":"'Renseignements à compléter'!$BG$16","v":0}]
[null,null,null,null,null,0,0,null,{"$f":"'Renseignements à compléter'!$BG$16","v":0}]
[null,null,null,null,null,0,0,null,{"$f":"'Renseignements à compléter'!$BG$16","v":0}]
[null,null,null,null,null,0,0,null,{"$f":"'Renseignements à compléter'!$BG$16","v":0}]
[null,null,null,null,null,0,0,null,{"$f":"'Renseignements à compléter'!$BG$16","v":0}]
[null,null,null,null,null,0,0,null,{"$f":"'Renseignements à compléter'!$BG$16","v":0}]
[null,null,null,null,null,0,0,null,{"$f":"'Renseignements à compléter'!$BG$16","v":0}]
[null,null,null,null,null,0,0,null,{"$f":"'Renseignements à compléter'!$BG$16","v":0}]
[null,null,null,null,null,0,0,null,{"$f":"'Renseignements à compléter'!$BG$16","v":0}]
[null,null,null,null,null,0,0,null,{"$f":"'Renseignements à compléter'!$BG$16","v":0}]
[null,null,null,null,null,0,0,null,{"$f":"'Renseignements à compléter'!$BG$16","v":0}]
[null,null,null,null,null,0,0,null,{"$f":"'Renseignements à compléter'!$BG$16","v":0}]
[null,null,null,null,null,0,0,null,{"$f":"'Renseignements à compléter'!$BG$16","v":0}]
[null,null,null,null,null,0,0,null,{"$f":"'Renseignements à compléter'!$BG$16","v":0}]
[null,null,null,null,null,0,0,null,{"$f":"'Renseignements à compléter'!$BG$16","v":0}]
[null,null,null,null,null,0,0,null,{"$f":"'Renseignements à compléter'!$BG$16","v":0}]
[null,null,null,null,null,0,0,null,{"$f":"'Renseignements à compléter'!$BG$16","v":0}]
[null,null,null,null,null,0,0,null,{"$f":"'Renseignements à compléter'!$BG$16","v":0}]
[null,null,null,null,null,0,0,null,{"$f":"'Renseignements à compléter'!$BG$16","v":0}]
[null,null,null,null,null,0,0,null,{"$f":"'Renseignements à compléter'!$BG$16","v":0}]
[null,null,null,null,null,0,0,null,{"$f":"'Renseignements à compléter'!$BG$16","v":0}]
[null,null,null,null,null,{"$f":"MAX(D243-E243,0)","v":0},{"$f":"IF(I243=365,IF(F243<VLOOKUP($C$11,$N$20:$AO$26,28,FALSE),F243,VLOOKUP($C$11,$N$20:$AO$26,28,FALSE)),IF(F243<(VLOOKUP($C$11,$N$20:$AO$26,28,FALSE)*I243/365),F243,VLOOKUP($C$11,$N$20:$AO$26,28,FALSE)*I243/365))","v":0},null,{"$f":"'Renseignements à compléter'!$BG$16","v":0}]
[null,null,null,null,null,0,0,null,{"$f":"'Renseignements à compléter'!$BG$16","v":0}]
[null,null,null,null,null,0,0,null,{"$f":"'Renseignements à compléter'!$BG$16","v":0}]
[null,null,null,null,null,0,0,null,{"$f":"'Renseignements à compléter'!$BG$16","v":0}]
[null,null,null,null,null,0,0,null,{"$f":"'Renseignements à compléter'!$BG$16","v":0}]
[null,null,null,null,null,0,0,null,{"$f":"'Renseignements à compléter'!$BG$16","v":0}]
[null,null,null,null,null,0,0,null,{"$f":"'Renseignements à compléter'!$BG$16","v":0}]
[null,null,null,null,null,0,0,null,{"$f":"'Renseignements à compléter'!$BG$16","v":0}]
[null,null,null,null,null,0,0,null,{"$f":"'Renseignements à compléter'!$BG$16","v":0}]
[null,null,null,null,null,0,0,null,{"$f":"'Renseignements à compléter'!$BG$16","v":0}]
[null,null,null,null,null,0,0,null,{"$f":"'Renseignements à compléter'!$BG$16","v":0}]
[null,null,null,null,null,0,0,null,{"$f":"'Renseignements à compléter'!$BG$16","v":0}]
[null,null,null,null,null,0,0,null,{"$f":"'Renseignements à compléter'!$BG$16","v":0}]
[null,null,null,null,null,0,0,null,{"$f":"'Renseignements à compléter'!$BG$16","v":0}]
[null,null,null,null,null,0,0,null,{"$f":"'Renseignements à compléter'!$BG$16","v":0}]
[null,null,null,null,null,0,0,null,{"$f":"'Renseignements à compléter'!$BG$16","v":0}]
[null,null,null,null,null,0,0,null,{"$f":"'Renseignements à compléter'!$BG$16","v":0}]
[null,null,null,null,null,0,0,null,{"$f":"'Renseignements à compléter'!$BG$16","v":0}]
[null,null,null,null,null,0,0,null,{"$f":"'Renseignements à compléter'!$BG$16","v":0}]
[null,null,null,null,null,0,0,null,{"$f":"'Renseignements à compléter'!$BG$16","v":0}]
[null,null,null,null,null,0,0,null,{"$f":"'Renseignements à compléter'!$BG$16","v":0}]
[null,null,null,null,null,0,0,null,{"$f":"'Renseignements à compléter'!$BG$16","v":0}]
[null,null,null,null,null,0,0,null,{"$f":"'Renseignements à compléter'!$BG$16","v":0}]
[null,null,null,null,null,0,0,null,{"$f":"'Renseignements à compléter'!$BG$16","v":0}]
[null,null,null,null,null,0,0,null,{"$f":"'Renseignements à compléter'!$BG$16","v":0}]
[null,null,null,null,null,0,0,null,{"$f":"'Renseignements à compléter'!$BG$16","v":0}]
[null,null,null,null,null,0,0,null,{"$f":"'Renseignements à compléter'!$BG$16","v":0}]
[null,null,null,null,null,0,0,null,{"$f":"'Renseignements à compléter'!$BG$16","v":0}]
[null,null,null,null,null,0,0,null,{"$f":"'Renseignements à compléter'!$BG$16","v":0}]
[null,null,null,null,null,0,0,null,{"$f":"'Renseignements à compléter'!$BG$16","v":0}]
[null,null,null,null,null,0,0,null,{"$f":"'Renseignements à compléter'!$BG$16","v":0}]
[null,null,null,null,null,0,0,null,{"$f":"'Renseignements à compléter'!$BG$16","v":0}]
[null,null,null,null,null,0,0,null,{"$f":"'Renseignements à compléter'!$BG$16","v":0}]
[null,null,null,null,null,0,0,null,{"$f":"'Renseignements à compléter'!$BG$16","v":0}]
[null,null,null,null,null,0,0,null,{"$f":"'Renseignements à compléter'!$BG$16","v":0}]
[null,null,null,null,null,0,0,null,{"$f":"'Renseignements à compléter'!$BG$16","v":0}]
[null,null,null,null,null,0,0,null,{"$f":"'Renseignements à compléter'!$BG$16","v":0}]
[null,null,null,null,null,0,0,null,{"$f":"'Renseignements à compléter'!$BG$16","v":0}]
[null,null,null,null,null,0,0,null,{"$f":"'Renseignements à compléter'!$BG$16","v":0}]
[null,null,null,null,null,0,0,null,{"$f":"'Renseignements à compléter'!$BG$16","v":0}]
[null,null,null,null,null,0,0,null,{"$f":"'Renseignements à compléter'!$BG$16","v":0}]
[null,null,null,null,null,0,0,null,{"$f":"'Renseignements à compléter'!$BG$16","v":0}]
[null,null,null,null,null,0,0,null,{"$f":"'Renseignements à compléter'!$BG$16","v":0}]
[null,null,null,null,null,0,0,null,{"$f":"'Renseignements à compléter'!$BG$16","v":0}]
[null,null,null,null,null,0,0,null,{"$f":"'Renseignements à compléter'!$BG$16","v":0}]
[null,null,null,null,null,0,0,null,{"$f":"'Renseignements à compléter'!$BG$16","v":0}]
[null,null,null,null,null,0,0,null,{"$f":"'Renseignements à compléter'!$BG$16","v":0}]
[null,null,null,null,null,0,0,null,{"$f":"'Renseignements à compléter'!$BG$16","v":0}]
[null,null,null,null,null,0,0,null,{"$f":"'Renseignements à compléter'!$BG$16","v":0}]
[null,null,null,null,null,0,0,null,{"$f":"'Renseignements à compléter'!$BG$16","v":0}]
[null,null,null,null,null,0,0,null,{"$f":"'Renseignements à compléter'!$BG$16","v":0}]
[null,null,null,null,null,0,0,null,{"$f":"'Renseignements à compléter'!$BG$16","v":0}]
[null,null,null,null,null,0,0,null,{"$f":"'Renseignements à compléter'!$BG$16","v":0}]
[null,null,null,null,null,0,0,null,{"$f":"'Renseignements à compléter'!$BG$16","v":0}]
[null,null,null,null,null,0,0,null,{"$f":"'Renseignements à compléter'!$BG$16","v":0}]
[null,null,null,null,null,0,0,null,{"$f":"'Renseignements à compléter'!$BG$16","v":0}]
[null,null,null,null,null,0,0,null,{"$f":"'Renseignements à compléter'!$BG$16","v":0}]
[null,null,null,null,null,0,0,null,{"$f":"'Renseignements à compléter'!$BG$16","v":0}]
[null,null,null,null,null,0,0,null,{"$f":"'Renseignements à compléter'!$BG$16","v":0}]
[null,null,null,null,null,0,0,null,{"$f":"'Renseignements à compléter'!$BG$16","v":0}]
[null,null,null,null,null,0,0,null,{"$f":"'Renseignements à compléter'!$BG$16","v":0}]
[null,null,null,null,null,0,0,null,{"$f":"'Renseignements à compléter'!$BG$16","v":0}]
[null,null,null,null,null,0,0,null,{"$f":"'Renseignements à compléter'!$BG$16","v":0}]
[null,null,null,null,null,0,0,null,{"$f":"'Renseignements à compléter'!$BG$16","v":0}]
[null,null,null,null,null,{"$f":"MAX(D307-E307,0)","v":0},{"$f":"IF(I307=365,IF(F307<VLOOKUP($C$11,$N$20:$AO$26,28,FALSE),F307,VLOOKUP($C$11,$N$20:$AO$26,28,FALSE)),IF(F307<(VLOOKUP($C$11,$N$20:$AO$26,28,FALSE)*I307/365),F307,VLOOKUP($C$11,$N$20:$AO$26,28,FALSE)*I307/365))","v":0},null,{"$f":"'Renseignements à compléter'!$BG$16","v":0}]
[null,null,null,null,null,0,0,null,{"$f":"'Renseignements à compléter'!$BG$16","v":0}]
[null,null,null,null,null,0,0,null,{"$f":"'Renseignements à compléter'!$BG$16","v":0}]
[null,null,null,null,null,0,0,null,{"$f":"'Renseignements à compléter'!$BG$16","v":0}]
[null,null,null,null,null,0,0,null,{"$f":"'Renseignements à compléter'!$BG$16","v":0}]
[null,null,null,null,null,0,0,null,{"$f":"'Renseignements à compléter'!$BG$16","v":0}]
[null,null,null,null,null,0,0,null,{"$f":"'Renseignements à compléter'!$BG$16","v":0}]
[null,null,null,null,null,0,0,null,{"$f":"'Renseignements à compléter'!$BG$16","v":0}]
[null,null,null,null,null,0,0,null,{"$f":"'Renseignements à compléter'!$BG$16","v":0}]
[null,null,null,null,null,0,0,null,{"$f":"'Renseignements à compléter'!$BG$16","v":0}]
[null,null,null,null,null,0,0,null,{"$f":"'Renseignements à compléter'!$BG$16","v":0}]
[null,null,null,null,null,0,0,null,{"$f":"'Renseignements à compléter'!$BG$16","v":0}]
[null,null,null,null,null,0,0,null,{"$f":"'Renseignements à compléter'!$BG$16","v":0}]
[null,null,null,null,null,0,0,null,{"$f":"'Renseignements à compléter'!$BG$16","v":0}]
[null,null,null,null,null,0,0,null,{"$f":"'Renseignements à compléter'!$BG$16","v":0}]
[null,null,null,null,null,0,0,null,{"$f":"'Renseignements à compléter'!$BG$16","v":0}]
[null,null,null,null,null,0,0,null,{"$f":"'Renseignements à compléter'!$BG$16","v":0}]
[null,null,null,null,null,0,0,null,{"$f":"'Renseignements à compléter'!$BG$16","v":0}]
[null,null,null,null,null,0,0,null,{"$f":"'Renseignements à compléter'!$BG$16","v":0}]
[null,null,null,null,null,0,0,null,{"$f":"'Renseignements à compléter'!$BG$16","v":0}]
[null,null,null,null,null,0,0,null,{"$f":"'Renseignements à compléter'!$BG$16","v":0}]
[null,null,null,null,null,0,0,null,{"$f":"'Renseignements à compléter'!$BG$16","v":0}]
[null,null,null,null,null,0,0,null,{"$f":"'Renseignements à compléter'!$BG$16","v":0}]
[null,null,null,null,null,0,0,null,{"$f":"'Renseignements à compléter'!$BG$16","v":0}]
[null,null,null,null,null,0,0,null,{"$f":"'Renseignements à compléter'!$BG$16","v":0}]
[null,null,null,null,null,0,0,null,{"$f":"'Renseignements à compléter'!$BG$16","v":0}]
[null,null,null,null,null,0,0,null,{"$f":"'Renseignements à compléter'!$BG$16","v":0}]
[null,null,null,null,null,0,0,null,{"$f":"'Renseignements à compléter'!$BG$16","v":0}]
[null,null,null,null,null,0,0,null,{"$f":"'Renseignements à compléter'!$BG$16","v":0}]
[null,null,null,null,null,0,0,null,{"$f":"'Renseignements à compléter'!$BG$16","v":0}]
[null,null,null,null,null,0,0,null,{"$f":"'Renseignements à compléter'!$BG$16","v":0}]
[null,null,null,null,null,0,0,null,{"$f":"'Renseignements à compléter'!$BG$16","v":0}]
[null,null,null,null,null,0,0,null,{"$f":"'Renseignements à compléter'!$BG$16","v":0}]
[null,null,null,null,null,0,0,null,{"$f":"'Renseignements à compléter'!$BG$16","v":0}]
[null,null,null,null,null,0,0,null,{"$f":"'Renseignements à compléter'!$BG$16","v":0}]
[null,null,null,null,null,0,0,null,{"$f":"'Renseignements à compléter'!$BG$16","v":0}]
[null,null,null,null,null,0,0,null,{"$f":"'Renseignements à compléter'!$BG$16","v":0}]
[null,null,null,null,null,0,0,null,{"$f":"'Renseignements à compléter'!$BG$16","v":0}]
[null,null,null,null,null,0,0,null,{"$f":"'Renseignements à compléter'!$BG$16","v":0}]
[null,null,null,null,null,0,0,null,{"$f":"'Renseignements à compléter'!$BG$16","v":0}]
[null,null,null,null,null,0,0,null,{"$f":"'Renseignements à compléter'!$BG$16","v":0}]
[null,null,null,null,null,0,0,null,{"$f":"'Renseignements à compléter'!$BG$16","v":0}]
[null,null,null,null,null,0,0,null,{"$f":"'Renseignements à compléter'!$BG$16","v":0}]
[null,null,null,null,null,0,0,null,{"$f":"'Renseignements à compléter'!$BG$16","v":0}]
[null,null,null,null,null,0,0,null,{"$f":"'Renseignements à compléter'!$BG$16","v":0}]
[null,null,null,null,null,0,0,null,{"$f":"'Renseignements à compléter'!$BG$16","v":0}]
[null,null,null,null,null,0,0,null,{"$f":"'Renseignements à compléter'!$BG$16","v":0}]
[null,null,null,null,null,0,0,null,{"$f":"'Renseignements à compléter'!$BG$16","v":0}]
[null,null,null,null,null,0,0,null,{"$f":"'Renseignements à compléter'!$BG$16","v":0}]
[null,null,null,null,null,0,0,null,{"$f":"'Renseignements à compléter'!$BG$16","v":0}]
[null,null,null,null,null,0,0,null,{"$f":"'Renseignements à compléter'!$BG$16","v":0}]
[null,null,null,null,null,0,0,null,{"$f":"'Renseignements à compléter'!$BG$16","v":0}]
[null,null,null,null,null,0,0,null,{"$f":"'Renseignements à compléter'!$BG$16","v":0}]
[null,null,null,null,null,0,0,null,{"$f":"'Renseignements à compléter'!$BG$16","v":0}]
[null,null,null,null,null,0,0,null,{"$f":"'Renseignements à compléter'!$BG$16","v":0}]
[null,null,null,null,null,0,0,null,{"$f":"'Renseignements à compléter'!$BG$16","v":0}]
[null,null,null,null,null,0,0,null,{"$f":"'Renseignements à compléter'!$BG$16","v":0}]
[null,null,null,null,null,0,0,null,{"$f":"'Renseignements à compléter'!$BG$16","v":0}]
[null,null,null,null,null,0,0,null,{"$f":"'Renseignements à compléter'!$BG$16","v":0}]
[null,null,null,null,null,0,0,null,{"$f":"'Renseignements à compléter'!$BG$16","v":0}]
[null,null,null,null,null,0,0,null,{"$f":"'Renseignements à compléter'!$BG$16","v":0}]
[null,null,null,null,null,0,0,null,{"$f":"'Renseignements à compléter'!$BG$16","v":0}]
[null,null,null,null,null,{"$f":"MAX(D369-E369,0)","v":0},0,null,{"$f":"'Renseignements à compléter'!$BG$16","v":0}]
[null,null,null,null,null,0,0,null,{"$f":"'Renseignements à compléter'!$BG$16","v":0}]
[null,null,null,null,null,0,{"$f":"IF(I371=365,IF(F371<VLOOKUP($C$11,$N$20:$AO$26,28,FALSE),F371,VLOOKUP($C$11,$N$20:$AO$26,28,FALSE)),IF(F371<(VLOOKUP($C$11,$N$20:$AO$26,28,FALSE)*I371/365),F371,VLOOKUP($C$11,$N$20:$AO$26,28,FALSE)*I371/365))","v":0},null,{"$f":"'Renseignements à compléter'!$BG$16","v":0}]
[null,null,null,null,null,0,0,null,{"$f":"'Renseignements à compléter'!$BG$16","v":0}]
[null,null,null,null,null,0,0,null,{"$f":"'Renseignements à compléter'!$BG$16","v":0}]
[null,null,null,null,null,0,0,null,{"$f":"'Renseignements à compléter'!$BG$16","v":0}]
[null,null,null,null,null,0,0,null,{"$f":"'Renseignements à compléter'!$BG$16","v":0}]
[null,null,null,null,null,0,0,null,{"$f":"'Renseignements à compléter'!$BG$16","v":0}]
[null,null,null,null,null,0,0,null,{"$f":"'Renseignements à compléter'!$BG$16","v":0}]
[null,null,null,null,null,0,0,null,{"$f":"'Renseignements à compléter'!$BG$16","v":0}]
[null,null,null,null,null,0,0,null,{"$f":"'Renseignements à compléter'!$BG$16","v":0}]
[null,null,null,null,null,0,0,null,{"$f":"'Renseignements à compléter'!$BG$16","v":0}]
[null,null,null,null,null,0,0,null,{"$f":"'Renseignements à compléter'!$BG$16","v":0}]
[null,null,null,null,null,0,0,null,{"$f":"'Renseignements à compléter'!$BG$16","v":0}]
[null,null,null,null,null,0,0,null,{"$f":"'Renseignements à compléter'!$BG$16","v":0}]
[null,null,null,null,null,0,0,null,{"$f":"'Renseignements à compléter'!$BG$16","v":0}]
[null,null,null,null,null,{"$f":"MAX(D385-E385,0)","v":0},0,null,{"$f":"'Renseignements à compléter'!$BG$16","v":0}]
[null,null,null,null,null,0,0,null,{"$f":"'Renseignements à compléter'!$BG$16","v":0}]
[null,null,null,null,null,0,0,null,{"$f":"'Renseignements à compléter'!$BG$16","v":0}]
[null,null,null,null,null,0,0,null,{"$f":"'Renseignements à compléter'!$BG$16","v":0}]
[null,null,null,null,null,0,0,null,{"$f":"'Renseignements à compléter'!$BG$16","v":0}]
[null,null,null,null,null,0,0,null,{"$f":"'Renseignements à compléter'!$BG$16","v":0}]
[null,null,null,null,null,0,0,null,{"$f":"'Renseignements à compléter'!$BG$16","v":0}]
[null,null,null,null,null,0,0,null,{"$f":"'Renseignements à compléter'!$BG$16","v":0}]
[null,null,null,null,null,0,0,null,{"$f":"'Renseignements à compléter'!$BG$16","v":0}]
[null,null,null,null,null,0,0,null,{"$f":"'Renseignements à compléter'!$BG$16","v":0}]
[null,null,null,null,null,0,0,null,{"$f":"'Renseignements à compléter'!$BG$16","v":0}]
[null,null,null,null,null,0,0,null,{"$f":"'Renseignements à compléter'!$BG$16","v":0}]
[null,null,null,null,null,0,0,null,{"$f":"'Renseignements à compléter'!$BG$16","v":0}]
[null,null,null,null,null,0,0,null,{"$f":"'Renseignements à compléter'!$BG$16","v":0}]
[null,null,null,null,null,0,0,null,{"$f":"'Renseignements à compléter'!$BG$16","v":0}]
[null,null,null,null,null,0,0,null,{"$f":"'Renseignements à compléter'!$BG$16","v":0}]
[null,null,null,null,null,0,0,null,{"$f":"'Renseignements à compléter'!$BG$16","v":0}]
[null,null,null,null,null,0,0,null,{"$f":"'Renseignements à compléter'!$BG$16","v":0}]
[null,null,null,null,null,0,0,null,{"$f":"'Renseignements à compléter'!$BG$16","v":0}]
[null,null,null,null,null,0,0,null,{"$f":"'Renseignements à compléter'!$BG$16","v":0}]
[null,null,null,null,null,0,0,null,{"$f":"'Renseignements à compléter'!$BG$16","v":0}]
[null,null,null,null,null,0,0,null,{"$f":"'Renseignements à compléter'!$BG$16","v":0}]
[null,null,null,null,null,0,0,null,{"$f":"'Renseignements à compléter'!$BG$16","v":0}]
[null,null,null,null,null,0,0,null,{"$f":"'Renseignements à compléter'!$BG$16","v":0}]
[null,null,null,null,null,0,0,null,{"$f":"'Renseignements à compléter'!$BG$16","v":0}]
[null,null,null,null,null,0,0,null,{"$f":"'Renseignements à compléter'!$BG$16","v":0}]
[null,null,null,null,null,0,0,null,{"$f":"'Renseignements à compléter'!$BG$16","v":0}]
[null,null,null,null,null,0,0,null,{"$f":"'Renseignements à compléter'!$BG$16","v":0}]
[null,null,null,null,null,0,0,null,{"$f":"'Renseignements à compléter'!$BG$16","v":0}]
[null,null,null,null,null,0,0,null,{"$f":"'Renseignements à compléter'!$BG$16","v":0}]
[null,null,null,null,null,0,0,null,{"$f":"'Renseignements à compléter'!$BG$16","v":0}]
[null,null,null,null,null,0,0,null,{"$f":"'Renseignements à compléter'!$BG$16","v":0}]
[null,null,null,null,null,0,0,null,{"$f":"'Renseignements à compléter'!$BG$16","v":0}]
[null,null,null,null,null,0,0,null,{"$f":"'Renseignements à compléter'!$BG$16","v":0}]
[null,null,null,null,null,0,0,null,{"$f":"'Renseignements à compléter'!$BG$16","v":0}]
[null,null,null,null,null,0,0,null,{"$f":"'Renseignements à compléter'!$BG$16","v":0}]
[null,null,null,null,null,0,0,null,{"$f":"'Renseignements à compléter'!$BG$16","v":0}]
[null,null,null,null,null,0,0,null,{"$f":"'Renseignements à compléter'!$BG$16","v":0}]
[null,null,null,null,null,0,0,null,{"$f":"'Renseignements à compléter'!$BG$16","v":0}]
[null,null,null,null,null,0,0,null,{"$f":"'Renseignements à compléter'!$BG$16","v":0}]
[null,null,null,null,null,0,0,null,{"$f":"'Renseignements à compléter'!$BG$16","v":0}]
[null,null,null,null,null,0,0,null,{"$f":"'Renseignements à compléter'!$BG$16","v":0}]
[null,null,null,null,null,0,0,null,{"$f":"'Renseignements à compléter'!$BG$16","v":0}]
[null,null,null,null,null,0,0,null,{"$f":"'Renseignements à compléter'!$BG$16","v":0}]
[null,null,null,null,null,0,0,null,{"$f":"'Renseignements à compléter'!$BG$16","v":0}]
[null,null,null,null,null,0,0,null,{"$f":"'Renseignements à compléter'!$BG$16","v":0}]
[null,null,null,null,null,0,0,null,{"$f":"'Renseignements à compléter'!$BG$16","v":0}]
[null,null,null,null,null,0,0,null,{"$f":"'Renseignements à compléter'!$BG$16","v":0}]
[null,null,null,null,null,0,0,null,{"$f":"'Renseignements à compléter'!$BG$16","v":0}]
[null,null,null,null,null,0,0,null,{"$f":"'Renseignements à compléter'!$BG$16","v":0}]
[null,null,null,null,null,{"$f":"MAX(D435-E435,0)","v":0},{"$f":"IF(I435=365,IF(F435<VLOOKUP($C$11,$N$20:$AO$26,28,FALSE),F435,VLOOKUP($C$11,$N$20:$AO$26,28,FALSE)),IF(F435<(VLOOKUP($C$11,$N$20:$AO$26,28,FALSE)*I435/365),F435,VLOOKUP($C$11,$N$20:$AO$26,28,FALSE)*I435/365))","v":0},null,{"$f":"'Renseignements à compléter'!$BG$16","v":0}]
[null,null,null,null,null,0,0,null,{"$f":"'Renseignements à compléter'!$BG$16","v":0}]
[null,null,null,null,null,0,0,null,{"$f":"'Renseignements à compléter'!$BG$16","v":0}]
[null,null,null,null,null,0,0,null,{"$f":"'Renseignements à compléter'!$BG$16","v":0}]
[null,null,null,null,null,0,0,null,{"$f":"'Renseignements à compléter'!$BG$16","v":0}]
[null,null,null,null,null,0,0,null,{"$f":"'Renseignements à compléter'!$BG$16","v":0}]
[null,null,null,null,null,0,0,null,{"$f":"'Renseignements à compléter'!$BG$16","v":0}]
[null,null,null,null,null,0,0,null,{"$f":"'Renseignements à compléter'!$BG$16","v":0}]
[null,null,null,null,null,0,0,null,{"$f":"'Renseignements à compléter'!$BG$16","v":0}]
[null,null,null,null,null,0,0,null,{"$f":"'Renseignements à compléter'!$BG$16","v":0}]
[null,null,null,null,null,0,0,null,{"$f":"'Renseignements à compléter'!$BG$16","v":0}]
[null,null,null,null,null,0,0,null,{"$f":"'Renseignements à compléter'!$BG$16","v":0}]
[null,null,null,null,null,0,0,null,{"$f":"'Renseignements à compléter'!$BG$16","v":0}]
[null,null,null,null,null,0,0,null,{"$f":"'Renseignements à compléter'!$BG$16","v":0}]
[null,null,null,null,null,0,0,null,{"$f":"'Renseignements à compléter'!$BG$16","v":0}]
[null,null,null,null,null,0,0,null,{"$f":"'Renseignements à compléter'!$BG$16","v":0}]
[null,null,null,null,null,0,0,null,{"$f":"'Renseignements à compléter'!$BG$16","v":0}]
[null,null,null,null,null,0,0,null,{"$f":"'Renseignements à compléter'!$BG$16","v":0}]
[null,null,null,null,null,0,0,null,{"$f":"'Renseignements à compléter'!$BG$16","v":0}]
[null,null,null,null,null,0,0,null,{"$f":"'Renseignements à compléter'!$BG$16","v":0}]
[null,null,null,null,null,0,0,null,{"$f":"'Renseignements à compléter'!$BG$16","v":0}]
[null,null,null,null,null,0,0,null,{"$f":"'Renseignements à compléter'!$BG$16","v":0}]
[null,null,null,null,null,0,0,null,{"$f":"'Renseignements à compléter'!$BG$16","v":0}]
[null,null,null,null,null,0,0,null,{"$f":"'Renseignements à compléter'!$BG$16","v":0}]
[null,null,null,null,null,0,0,null,{"$f":"'Renseignements à compléter'!$BG$16","v":0}]
[null,null,null,null,null,0,0,null,{"$f":"'Renseignements à compléter'!$BG$16","v":0}]
[null,null,null,null,null,0,0,null,{"$f":"'Renseignements à compléter'!$BG$16","v":0}]
[null,null,null,null,null,0,0,null,{"$f":"'Renseignements à compléter'!$BG$16","v":0}]
[null,null,null,null,null,0,0,null,{"$f":"'Renseignements à compléter'!$BG$16","v":0}]
[null,null,null,null,null,0,0,null,{"$f":"'Renseignements à compléter'!$BG$16","v":0}]
[null,null,null,null,null,0,0,null,{"$f":"'Renseignements à compléter'!$BG$16","v":0}]
[null,null,null,null,null,0,0,null,{"$f":"'Renseignements à compléter'!$BG$16","v":0}]
[null,null,null,null,null,0,0,null,{"$f":"'Renseignements à compléter'!$BG$16","v":0}]
[null,null,null,null,null,0,0,null,{"$f":"'Renseignements à compléter'!$BG$16","v":0}]
[null,null,null,null,null,0,0,null,{"$f":"'Renseignements à compléter'!$BG$16","v":0}]
[null,null,null,null,null,0,0,null,{"$f":"'Renseignements à compléter'!$BG$16","v":0}]
[null,null,null,null,null,0,0,null,{"$f":"'Renseignements à compléter'!$BG$16","v":0}]
[null,null,null,null,null,0,0,null,{"$f":"'Renseignements à compléter'!$BG$16","v":0}]
[null,null,null,null,null,0,0,null,{"$f":"'Renseignements à compléter'!$BG$16","v":0}]
[null,null,null,null,null,0,0,null,{"$f":"'Renseignements à compléter'!$BG$16","v":0}]
[null,null,null,null,null,0,0,null,{"$f":"'Renseignements à compléter'!$BG$16","v":0}]
[null,null,null,null,null,0,0,null,{"$f":"'Renseignements à compléter'!$BG$16","v":0}]
[null,null,null,null,null,0,0,null,{"$f":"'Renseignements à compléter'!$BG$16","v":0}]
[null,null,null,null,null,0,0,null,{"$f":"'Renseignements à compléter'!$BG$16","v":0}]
[null,null,null,null,null,0,0,null,{"$f":"'Renseignements à compléter'!$BG$16","v":0}]
[null,null,null,null,null,0,0,null,{"$f":"'Renseignements à compléter'!$BG$16","v":0}]
[null,null,null,null,null,0,0,null,{"$f":"'Renseignements à compléter'!$BG$16","v":0}]
[null,null,null,null,null,0,0,null,{"$f":"'Renseignements à compléter'!$BG$16","v":0}]
[null,null,null,null,null,0,0,null,{"$f":"'Renseignements à compléter'!$BG$16","v":0}]
[null,null,null,null,null,0,0,null,{"$f":"'Renseignements à compléter'!$BG$16","v":0}]
[null,null,null,null,null,0,0,null,{"$f":"'Renseignements à compléter'!$BG$16","v":0}]
[null,null,null,null,null,0,0,null,{"$f":"'Renseignements à compléter'!$BG$16","v":0}]
[null,null,null,null,null,0,0,null,{"$f":"'Renseignements à compléter'!$BG$16","v":0}]
[null,null,null,null,null,0,0,null,{"$f":"'Renseignements à compléter'!$BG$16","v":0}]
[null,null,null,null,null,0,0,null,{"$f":"'Renseignements à compléter'!$BG$16","v":0}]
[null,null,null,null,null,0,0,null,{"$f":"'Renseignements à compléter'!$BG$16","v":0}]
[null,null,null,null,null,0,0,null,{"$f":"'Renseignements à compléter'!$BG$16","v":0}]
[null,null,null,null,null,0,0,null,{"$f":"'Renseignements à compléter'!$BG$16","v":0}]
[null,null,null,null,null,0,0,null,{"$f":"'Renseignements à compléter'!$BG$16","v":0}]
[null,null,null,null,null,0,0,null,{"$f":"'Renseignements à compléter'!$BG$16","v":0}]
[null,null,null,null,null,0,0,null,{"$f":"'Renseignements à compléter'!$BG$16","v":0}]
[null,null,null,null,null,0,0,null,{"$f":"'Renseignements à compléter'!$BG$16","v":0}]
[null,null,null,null,null,0,0,null,{"$f":"'Renseignements à compléter'!$BG$16","v":0}]
[null,null,null,null,null,0,0,null,{"$f":"'Renseignements à compléter'!$BG$16","v":0}]
[null,null,null,null,null,{"$f":"MAX(D499-E499,0)","v":0},{"$f":"IF(I499=365,IF(F499<VLOOKUP($C$11,$N$20:$AO$26,28,FALSE),F499,VLOOKUP($C$11,$N$20:$AO$26,28,FALSE)),IF(F499<(VLOOKUP($C$11,$N$20:$AO$26,28,FALSE)*I499/365),F499,VLOOKUP($C$11,$N$20:$AO$26,28,FALSE)*I499/365))","v":0},null,{"$f":"'Renseignements à compléter'!$BG$16","v":0}]
[null,null,null,null,null,0,0,null,{"$f":"'Renseignements à compléter'!$BG$16","v":0}]

{"sheet":"Calculs","index":4,"n_rows":173,"n_cols":21,"rows_kept":173,"cut":false,"hidden":true,"merged":[[14,2,14,3],[5,2,5,16],[7,3,7,16],[0,7,0,15],[0,1,0,5],[2,0,2,16],[3,0,3,16],[13,2,13,3],[16,2,16,10],[19,2,19,4],[163,10,163,12],[149,10,149,12],[30,8,30,10],[22,3,22,15],[23,3,23,15],[35,2,35,15],[56,2,56,16],[147,2,147,16],[161,2,161,16],[31,8,31,10]]}
[null,null,null,null,null,null,null,"Financement des crédits d'impôt remboursables à la R & D"]
[]
["SCHÉMA D'ANALYSE"]
["Calculs relatifs aux crédits d'impôt à financer"]
[]
[null,null,"1.  ADMISSIBILITÉ AUX CRÉDITS D'IMPÔT REMBOURSABLES"]
[]
[null,null,"1.1"," Admissibilité aux crédits d'impôt remboursables (Québec)"]
[]
[null,null,null,"Date de la fin du premier exercice financier financé :"]
[null,null,null,"Date de la fin du deuxième exercice financier financé :"]
[]
[]
[null,null,"Actifs de :",null,null,null,null,"$","*",null,"en date du :",null,{"$f":"IF(M10=\"\",\"\",IF(M10>DATE(2005,2,28),M10-365,IF(M10<DATE(2004,2,29),M10-365,IF(M10=\"\",0,M10-366))))","v":""}]
[null,null,"Actifs de :",null,null,null,null,"$","*",null,"en date du :",null,{"$f":"IF(M11=\"\",\"\",IF(M11>DATE(2005,2,28),M11-365,IF(M11<DATE(2004,2,29),M11-365,IF(M11=\"\",0,M11-366))))","v":""}]
[]
[null,null,"* : Y compris les actifs des corporations associées, s'il y a lieu",null,null,null,null,null,null,null,null,null,null,null,null,null,null,null,null,1,0.375]
[null,null,null,null,null,null,null,null,null,null,null,null,null,null,null,null,null,null,null,25000000,0.33500000000000002]
[null,null,"Taux de calcul des crédits d'impôt à la R & D sur dépenses admissibles nettes n'excédant pas 2 millions $:",null,null,null,null,null,null,null,null,null,null,null,null,null,null,null,null,30000000,0.29499999999999998]
[null,null,"année teminée:",null,null,null,{"$f":"IF((K39>0),(K39),0)","v":""},":",{"$f":"IF(G14=\"\",\"\",IF(G14>0,VLOOKUP(G14,T17:U22,2),IF(G14<25000000,0.375,0)))","v":""},null,{"$f":"IF((M39>0),(M39),0)","v":""},":",{"$f":"IF(G15=\"\",\"\",IF(G15>0,VLOOKUP(G15,T17:U22,2),IF(G15<25000000,0.375,0)))","v":""},null,null,null,null,null,null,35000000,0.27500000000000002]
[null,null,"Taux de calcul des crédits d'impôt à la R & D sur dépenses admissibles nettes excédant 2 millions $ :",null,null,null,null,null,null,null,null,null,null,null,null,0.17499999999999999,null,null,null,37500000,0.255]
[null,null,null,null,null,null,null,null,null,null,null,null,null,null,null,null,null,null,null,40000000,0.215]
[null,null,"1.2","Admissibilité aux crédits d'impôt remboursables (Canada) pour le financement des EXERCICES",null,null,null,null,null,null,null,null,null,null,null,null,null,null,null,50000000]
[null,null,null,"FINANCIERS 2004 ET SUIVANTS"]
[]
[null,null,"La corporation est une corporation privée à contrôle canadien dont le revenu imposable"]
[null,null,"pour le dernier exercice financier était inférieur à 500 000 $ (y compris les corporations"]
[null,null,"associées s'il y a lieu)."]
[]
[]
[null,null,"Revenu imposable de:",null,null,null,null,"$","Capital imposable:",null,null,null,null,"$","en date du:",{"$f":"+M14","v":""}]
[null,null,"Revenu imposable de:",null,null,null,null,"$","Capital imposable:",null,null,null,null,"$","en date du:",{"$f":"+M15","v":""}]
[]
[]
[]
[null,null,"2. PROJET"]
[]
[null,null,null,null,null,null,null,null,"Année financière débutant le : ",null,{"$f":"IF(K39=\"\",\"\",+K39-365)","v":""},null,{"$f":"IF(M11=\"\",\"\",+K39+1)","v":""}]
[null,null,null,null,null,null,null,null,"Année financière se terminant le : ",null,{"$f":"IF(M10=\"\",\"\",+M10)","v":""},null,{"$f":"IF(M11=\"\",\"\",+M11)","v":""}]
[null,null,null,null,null,null,null,null,null,"(nombre de mois)",{"$f":"IF(K38=\"\",\"\",+(K39-K38)/30.42)","v":""},null,{"$f":"IF(M38=\"\",\"\",+(M39-M38)/30.42)","v":""},null,null,"Total"]
[null,null,"Salaires - personnes désignées",null,null,null,null,null,null,null,null,null,null,null,null,{"$f":"IF(SUM(K41:O41)=0,\"\",SUM(K41:O41))","v":""}]
[null,null,"Autres salaires",null,null,null,null,null,null,null,null,null,null,null,null,{"$f":"IF(SUM(K42:O42)=0,\"\",SUM(K42:O42))","v":""}]
[null,null,"Avantages sociaux imposables",null,null,null,null,null,null,null,null,null,null,null,null,""]
[null,null,"Avantages sociaux non imposables",null,null,null,null,null,null,null,null,null,null,null,null,""]
[null,null,"Provision pour salaires et av. soc. ",null,null,null,null,null,null,null,null,null,null,null,null,""]
[null,null,"Sous-traitance (honoraires)",null,null,null,null,null,null,null,null,null,null,null,null,""]
[null,null,"Sous-traitance (honoraires) - personnes liées",null,null,null,null,null,null,null,null,null,null,null,null,""]
[null,null,"Sous-traitance - centres de recherche reconnus",null,null,null,null,null,null,null,null,null,null,null,null,""]
[null,null,"Matières, fournitures et prototypes",null,null,null,null,null,null,null,null,null,null,null,null,""]
[null,null,"Autres dépenses admissibles (fédéral seulement)",null,null,null,null,null,null,null,null,null,null,null,null,""]
[null,null,"Autres dépenses d'exploitation ou règle du 65 %",null,null,null,null,null,null,null,{"$f":"IF((K42+K41)*0.65=0,\"\",(K42+K41)*0.65)","v":""},null,{"$f":"IF((M42+M41)*0.65=0,\"\",(M42+M41)*0.65)","v":""},null,null,""]
[null,null,"Dépenses en capital",null,null,null,null,null,null,null,null,null,null,null,null,""]
[null,null,"Autres dépenses non admissibles",null,null,null,null,null,null,null,null,null,null,null,null,""]
[null,null,null,null,null,null,null,null,null,"Total",{"$f":"IF(SUM(K41:K53)=0,\"\",SUM(K41:K53))","v":""},null,{"$f":"IF(SUM(M41:M53)=0,\"\",0)","v":""},null,null,""]
[]
[]
[null,null,"3. CALCUL DES CRÉDITS À FINANCER (en $)"]
[]
[null,null,null,null,null,null,null,null,null,"Exercice(s) terminé(s) le :",{"$f":"K39","v":""},null,{"$f":"M39","v":""},null,null,"Total"]
[null,null,"3.1","Crédits d'impôt (Québec)"]
[null,null,null,"Salaires - personnes désignées",null,null,null,null,null,null,{"$f":"IF(K41=0,\"\",K41)","v":""},null,{"$f":"IF(M41=0,\"\",M41)","v":""},null,null,{"$f":"IF(SUM(K61:O61)=0,\"\",SUM(K61:O61))","v":""}]
[null,null,null,"Autres salaires",null,null,null,null,null,null,{"$f":"IF(K42=0,\"\",K42)","v":""},null,{"$f":"IF(M42=0,\"\",M42)","v":""},null,null,""]
[null,null,null,"Avantages soc. imposables",null,null,null,null,null,null,{"$f":"IF(K43=0,\"\",K43)","v":""},null,{"$f":"IF(M43=0,\"\",M43)","v":""},null,null,""]
[null,null,null,"Provision pour salaires et av. soc.",null,null,null,null,null,null,{"$f":"IF(K45=0,\"\",K45)","v":""},null,{"$f":"IF(M45=0,\"\",M45)","v":""},null,null,""]
[null,null,null,"Sous-traitance (honoraires) admiss. à 50 %",null,null,null,null,null,null,{"$f":"IF(K46*50%=0,\"\",K46*50%)","v":""},null,{"$f":"IF(M46*50%=0,\"\",M46*50%)","v":""},null,null,""]
[null,null,null,"Ss-traitance (honoraires) pers. liées (adm. moyenne 80%)",null,null,null,null,null,null,{"$f":"IF(K47*80%=0,\"\",K47*80%)","v":""},null,{"$f":"IF(M47*50%=0,\"\",M47*50%)","v":""},null,null,""]
[null,null,null,"Ss-trait. Ctres recherche reconnus (adm. 50 % ou 80 %)",null,null,null,null,null,null,{"$f":"IF(K48*50%=0,\"\",K48*50%)","v":""},null,{"$f":"IF(M48*50%=0,\"\",M48*50%)","v":""},null,null,""]
[]
[null,null,null,"Moins:","dépenses refusées",null,null,null,null,null,null,null,null,null,null,{"$f":"IF(SUM(K69:O69)=0,\"\",SUM(K69:O69))","v":""}]
[null,null,null,null,"subventions",null,null,null,null,null,null,null,null,null,null,{"$f":"IF(SUM(K70:O70)=0,\"\",SUM(K70:O70))","v":""}]
[]
[null,null,null,"Dépenses nettes admissibles  ",null,null,null,null,null,null,{"$f":"IF(SUM(K61:K70)=0,\"\",SUM(K61:K70))","v":""},null,{"$f":"IF(SUM(M61:M70)=0,\"\",SUM(M61:M70))","v":""},null,null,{"$f":"IF(SUM(K72:O72)=0,\"\",SUM(K72:O72))","v":""}]
[]
[null,null,null,"Crédits à 37,5 % pr dép. adm. < = 2 000 000 $ ",null,null,null,null,null,null,{"$f":"IF(K72=\"\",\"\",IF(IF(K$38>0,IF(K72>2000000,(2000000*I20),(K$72*$I$20)),0)=0,\"\",IF(K$38>0,IF(K72>2000000,(2000000*I20),(K$72*$I$20)),0)))","v":""},null,{"$f":"IF(M72=\"\",\"\",IF(IF(M$38>0,IF(M72>2000000,(2000000*M20),(M$72*$M$20)),0)=0,\"\",IF(M$38>0,IF(M72>2000000,(2000000*M20),(M$72*$M$20)),0)))","v":""},null,null,{"$f":"IF(SUM(K74:O74)=0,\"\",SUM(K74:O74))","v":""}]
[null,null,null,"Crédits à 17,5 % pr dép. adm. > 2 000 000 $",null,null,null,null,null,null,{"$f":"IF(K72=\"\",\"\",IF(K$38>0,IF((K$72)>2000000,((K$72-2000000)*0.175),0)))","v":""},null,{"$f":"IF(M72=\"\",\"\",IF(M$38>0,IF((M$72)>2000000,((M$72-2000000)*0.175),0)))","v":""},null,null,{"$f":"IF(SUM(K75:O75)=0,\"\",SUM(K75:O75))","v":""}]
[null,null,null,null,null,null,null,null,null,null,{"$f":"IF(SUM(K74:K75)=0,\"\",SUM(K74:K75))","v":""},null,{"$f":"IF(SUM(M74:M75)=0,\"\",SUM(M74:M75))","v":""}]
[null,null,null,"Moins: taxe sur le capital (net)",null,null,null,null,null,null,null,null,null,null,null,{"$f":"IF(SUM(K77:O77)=0,\"\",SUM(K77:O77))","v":""}]
[null,null,null,"Total des crédits d'impôt remboursables (Québec)",null,null,null,null,null,null,{"$f":"IF(K74=\"\",\"\",IF(ROUND(+K76+K77,0)=0,\"\",ROUND(+K76+K77,0)))","v":""},null,{"$f":"IF(M74=\"\",\"\",IF(ROUND(+M76+M77,0)=0,\"\",ROUND(+M76+M77,0)))","v":""},null,null,{"$f":"IF(IF(SUM(K78:O78)=0,\"\",SUM(K78:O78))=0,\"\",IF(SUM(K78:O78)=0,\"\",SUM(K78:O78)))","v":""}]
[]
[]
[null,null,"3.2","Crédits d'impôt (Canada)"]
[]
[null,null,null,"Salaires - personnes désignées",null,null,null,null,null,null,{"$f":"IF(K41=0,\"\",K41)","v":""},null,{"$f":"IF(M41=0,\"\",M41)","v":""},null,null,{"$f":"IF(SUM(K83:O83)=0,\"\",SUM(K83:O83))","v":""}]
[null,null,null,"Autres salaires",null,null,null,null,null,null,"",null,"",null,null,{"$f":"IF(SUM(K84:O84)=0,\"\",SUM(K84:O84))","v":""}]
[null,null,null,"Avantages soc. imposables",null,null,null,null,null,null,"",null,"",null,null,""]
[null,null,null,"Avantages soc. non imposables",null,null,null,null,null,null,"",null,"",null,null,""]
[null,null,null,"Provision pour salaires et av. soc. ",null,null,null,null,null,null,"",null,"",null,null,""]
[null,null,null,"Sous-traitance (honoraires) Admiss. 100 %",null,null,null,null,null,null,"",null,"",null,null,""]
[null,null,null,"Ss-traitance (hon.) - personnes liées. Admiss moy. 80%",null,null,null,null,null,null,{"$f":"IF(K47*80%=0,\"\",K47*80%)","v":""},null,{"$f":"IF(M47*80%=0,\"\",M47*80%)","v":""},null,null,""]
[null,null,null,"Ss-traitance - ctres de recherche reconnus. Admiss. 100%",null,null,null,null,null,null,{"$f":"IF(K48=0,\"\",K48)","v":""},null,{"$f":"IF(M48=0,\"\",M48)","v":""},null,null,""]
[null,null,null,"Matières, fournitures et prototypes",null,null,null,null,null,null,{"$f":"IF(K49=0,\"\",K49)","v":""},null,{"$f":"IF(M49=0,\"\",M49)","v":""},null,null,""]
[null,null,null,"Autres dépenses admissibles",null,null,null,null,null,null,{"$f":"IF(K50=0,\"\",K50)","v":""},null,{"$f":"IF(M50=0,\"\",M50)","v":""},null,null,""]
[null,null,null,"Autres dépenses d'exploitation ou règle du 65 %",null,null,null,null,null,null,{"$f":"IF(K51=0,\"\",K51)","v":""},null,{"$f":"IF(M51=0,\"\",M51)","v":""},null,null,""]
[]
[null,null,null,"Dépenses courantes admissibles",null,null,null,null,null,null,{"$f":"IF(SUM(K83:K93)=0,\"\",SUM(K83:K93))","v":""},null,{"$f":"IF(SUM(M83:M93)=0,\"\",SUM(M83:M93))","v":""},null,null,{"$f":"IF(SUM(K95:O95)=0,\"\",SUM(K95:O95))","v":""}]
[]
[null,null,null,"Moins:","dépenses refusées",null,null,null,null,null,null,null,null,null,null,{"$f":"IF(SUM(K97:O97)=0,\"\",SUM(K97:O97))","v":""}]
[null,null,null,null,"subventions",null,null,null,null,null,null,null,null,null,null,{"$f":"IF(SUM(K98:O98)=0,\"\",SUM(K98:O98))","v":""}]
[null,null,null,null,"crédits d'impôt du Québec (seul. ceux R & D)",null,null,null,null,null,{"$f":"IF(K78=\"\",\"\",IF(IF(K78>0,(-(K78)),0)=0,\"\",IF(K78>0,(-(K78)),0)))","v":""},null,{"$f":"IF(M78=\"\",\"\",IF(IF(M78>0,(-(M78)),0)=0,\"\",IF(M78>0,(-(M78)),0)))","v":""},null,null,{"$f":"IF(SUM(K99:O99)=0,\"\",SUM(K99:O99))","v":""}]
[]
[null,null,null,"Dépenses courantes nettes admissibles",null,null,null,null,null,null,{"$f":"IF(ISERROR(ROUND(K95+K97+K98+K99,0)),\"\",ROUND(K95+K97+K98+K99,0))","v":""},null,{"$f":"IF(ISERROR(ROUND(M95+M97+M98+M99,0)),\"\",ROUND(M95+M97+M98+M99,0))","v":""},null,null,{"$f":"IF(SUM(K101:O101)=0,\"\",SUM(K101:O101))","v":""}]
[]
[null,null,null,"Dépenses en capital",null,null,null,null,null,null,{"$f":"IF(+K52=0,\"\",+K52)","v":""},null,{"$f":"IF(M52=0,\"\",M52)","v":""},null,null,{"$f":"IF(SUM(K103:O103)=0,\"\",SUM(K103:O103))","v":""}]
[]
[null,null,null,"Moins:","dépenses refusées",null,null,null,null,null,null,null,null,null,null,{"$f":"IF(SUM(K105:O105)=0,\"\",SUM(K105:O105))","v":""}]
[null,null,null,null,"subventions",null,null,null,null,null,null,null,null,null,null,{"$f":"IF(SUM(K106:O106)=0,\"\",SUM(K106:O106))","v":""}]
[]
[null,null,null,"Dépenses en capital nettes admissibles",null,null,null,null,null,null,{"$f":"IF(ISERROR(ROUND(K103+K105+K106,0)),\"\",ROUND(K103+K105+K106,0))","v":""},null,{"$f":"IF(ISERROR(ROUND(M103+M105+M106,0)),\"\",ROUND(M103+M105+M106,0))","v":""},null,null,{"$f":"IF(SUM(K108:O108)=0,\"\",SUM(K108:O108))","v":""}]
[]
[null,null,null,"Calcul de la limite de dépenses donnant droit"]
[null,null,null,"aux crédits remboursables"]
[null,null,null,null,"Maximum",null,null,null,null,null,{"$f":"IF(P31=\"\",\"\",IF(IF(P31<=DATE(2002,12,31),4000000,5000000)=0,\"\",IF(P31<=DATE(2002,12,31),4000000,5000000)))","v":""},null,{"$f":"IF(P32=\"\",\"\",IF(IF(P32<=DATE(2002,12,31),4000000,5000000)=0,\"\",IF(P32<=DATE(2002,12,31),4000000,5000000)))","v":""}]
[null,null,null,null,"Moins: 10 fois le plus élevé de:"]
[null,null,null,null,"           300 000 $",null,null,null,null,null,3000000,null,3000000]
[null,null,null,null,"     revenu imposable:",null,null,null,null,null,{"$f":"IF(10*G31=0,\"\",10*G31)","v":""},null,{"$f":"IF(10*G32=0,\"\",10*G32)","v":""}]
[]
[null,null,null,null,"Limite de dépenses",null,null,null,null,null,{"$f":"IF(ISERROR(IF((K114-K112)>0,0,IF((K115-K112)>0,0,IF(K114>=K115,(K112-K114),(K112-K115))))),\"\",IF((K114-K112)>0,0,IF((K115-K112)>0,0,IF(K114>=K115,(K112-K114),(K112-K115)))))","v":""},null,{"$f":"IF(ISERROR(IF((M114-M112)>0,0,IF((M115-M112)>0,0,IF(M114>=M115,(M112-M114),(M112-M115))))),\"\",IF((M114-M112)>0,0,IF((M115-M112)>0,0,IF(M114>=M115,(M112-M114),(M112-M115)))))","v":""}]
[]
[null,null,null,null,"Limite de dépenses nette (a)",null,null,null,null,null,{"$f":"IF(ISERROR(IF(K117*(1-$T122)>0,K117*(1-$T122),0.01)),\"\",IF(K117*(1-$T122)>0,K117*(1-$T122),0.01))","v":""},null,{"$f":"IF(ISERROR(IF(M117*(1-$U122)>0,M117*(1-$U122),0.01)),\"\",IF(M117*(1-$U122)>0,M117*(1-$U122),0.01))","v":""}]
[null,null,null,null,"(a)  Calculée selon le montant du capital imposable."]
[null,null,null,null,null,null,null,null,null,null,null,null,null,null,null,null,null,null,null,{"$f":"IF(($M31-10000000)>0,$M31-10000000,0)","v":0},{"$f":"IF(($M32-10000000)>0,$M32-10000000,0)","v":0}]
[null,null,null,null,null,null,null,null,null,null,null,null,null,null,null,null,null,null,null,{"$f":"$T121/5000000","v":0},{"$f":"$U121/5000000","v":0}]
[null,null,null,null,null,null,null,null,null,{"$f":"+J59","v":"Exercice(s) terminé(s) le :"},{"$f":"+K59","v":""},null,{"$f":"+M59","v":""}]
[]
[null,null,null,"Calcul des crédits d'impôt bonifiés remboursables à 35 %",null,null,null,null,null,null,null,null,null,null,null,{"$f":"+P59","v":"Total"}]
[null,null,null,null,"Le moindre de:"]
[null,null,null,null,"     a)  dépenses courantes nettes admiss.",null,null,null,null,null,{"$f":"IF(ISERROR(IF(((K101+K108)<2000000),K101,T129)),\"\",IF(((K101+K108)<2000000),K101,T129))","v":""},null,{"$f":"IF(ISERROR(IF(((M101+M108)<2000000),M101,U129)),\"\",IF(((M101+M108)<2000000),M101,U129))","v":""},null,null,{"$f":"IF(SUM(K127:O127)=0,\"\",SUM(K127:O127))","v":""}]
[null,null,null,null,"          dépenses en capital nettes admiss.",null,null,null,null,null,{"$f":"IF(ISERROR(IF(((K101+K108)<2000000),K108,T130)),\"\",IF(((K101+K108)<2000000),K108,T130))","v":""},null,{"$f":"IF(ISERROR(IF(((M101+M108)<2000000),M108,U130)),\"\",IF(((M101+M108)<2000000),M108,U130))","v":""},null,null,{"$f":"IF(SUM(K128:O128)=0,\"\",SUM(K128:O128))","v":""}]
[null,null,null,null,null,null,"ou",null,null,null,null,null,null,null,null,null,null,null,null,{"$f":"K101","v":""},{"$f":"M101","v":""}]
[null,null,null,null,"     b)  limite de dépenses nette",null,null,null,null,null,{"$f":"IF((K119>0),K119,0)","v":""},null,{"$f":"IF((M119>0),M119,0)","v":""},null,null,{"$f":"IF(SUM(K130:O130)=0,\"\",SUM(K130:O130))","v":""},null,null,null,{"$f":"IF(($K130-$K127)>0,($K130-$K127),$K108)","v":{"$error":"#VALUE!"}},{"$f":"IF(($M130-$M127)>0,($M130-$M127),$M108)","v":{"$error":"#VALUE!"}}]
[]
[null,null,null,null,"35 % du moindre de (a) ou (b)"]
[null,null,null,null,"          dépenses courantes",null,null,null,null,null,{"$f":"IF(ISERROR(IF((K127>K130),(K130*0.35),(K127*0.35))),\"\",IF((K127>K130),(K130*0.35),(K127*0.35)))","v":""},null,{"$f":"IF(ISERROR(IF((M127>M130),(M130*0.35),(M127*0.35))),\"\",IF((M127>M130),(M130*0.35),(M127*0.35)))","v":""},null,null,{"$f":"IF(SUM(K133:O133)=0,\"\",SUM(K133:O133))","v":""}]
[null,null,null,null,"          dépenses en capital (remb. à 40 %)",null,null,null,null,null,{"$f":"IF(ISERROR(IF((K133=(K130*0.35)),0.01,(K128*0.35*0.4))),\"\",IF((K133=(K130*0.35)),0.01,(K128*0.35*0.4)))","v":""},null,{"$f":"IF(ISERROR(IF((M133=(M130*0.35)),0.01,(M128*0.35*0.4))),\"\",IF((M133=(M130*0.35)),0.01,(M128*0.35*0.4)))","v":""},null,null,{"$f":"IF(SUM(K134:O134)=0,\"\",SUM(K134:O134))","v":""}]
[]
[null,null,null,"Total des crédits d'impôt remboursables à 35 %",null,null,null,null,null,null,{"$f":"IF(SUM(K133:K134)=0,\"\",SUM(K133:K134))","v":""},null,{"$f":"IF(SUM(M133:M134)=0,\"\",SUM(M133:M134))","v":""},null,null,{"$f":"IF(SUM(K136:O136)=0,\"\",SUM(K136:O136))","v":""}]
[]
[null,null,null,"Calcul des crédits d'impôt réguliers "]
[null,null,null,"(20 %, remboursable à 40 %) pour dépenses"]
[null,null,null,"de R&D excédant 2 000 000 $"]
[null,null,null,"N.B.  Crédit remboursable seulement si le revenu imposable "]
[null,null,null,"de l'exercice précédant n'excède pas 300 000 $"]
[null,null,null,null,"dépenses totales excédant 2 000 000 $",null,null,null,null,null,{"$f":"IF(ISERROR(IF((K101+K108)>2000000,(K101+K108)-2000000,0)),\"\",IF((K101+K108)>2000000,(K101+K108)-2000000,0))","v":""},null,{"$f":"IF(ISERROR(IF((M101+M108)>2000000,(M101+M108)-2000000,0)),\"\",IF((M101+M108)>2000000,(M101+M108)-2000000,0))","v":""},null,null,{"$f":"IF(SUM(K143:O143)=0,\"\",SUM(K143:O143))","v":""}]
[null,null,null,null,"Crédits d'impôts réguliers remboursables",null,null,null,null,null,{"$f":"IF(ISERROR(IF((F31<200001),K143*0.2*0.4,0)),\"\",IF((F31<200001),K143*0.2*0.4,0))","v":""},null,{"$f":"IF(ISERROR(IF((F31<200001),M143*0.2*0.4,0)),\"\",IF((F31<200001),M143*0.2*0.4,0))","v":""},null,null,{"$f":"IF(SUM(K144:O144)=0,\"\",SUM(K144:O144))","v":""}]
[]
[null,null,null,"Crédits d'impôt remboursables à financer (Canada)",null,null,null,null,null,null,{"$f":"IF(ISERROR(ROUND(K136+K144,0)),\"\",ROUND(K136+K144,0))","v":""},null,{"$f":"IF(ISERROR(ROUND(M136+M144,0)),\"\",ROUND(M136+M144,0))","v":""},null,null,{"$f":"IF(SUM(K146:O146)=0,\"\",SUM(K146:O146))","v":""}]
[]
[null,null,"4.  PRÊT MAXIMAL (en $)"]
[]
[]
[null,null,null,null,null,null,null,null,null,"Exercice(s) terminé(s) le :",{"$f":"K59","v":""},null,{"$f":"M59","v":""},null,null,"Total"]
[null,null,"Crédits d'impôt remboursables (Québec) à financer",null,null,null,null,null,null,null,{"$f":"+K78","v":""},null,{"$f":"M78","v":""},null,null,{"$f":"IF(SUM(K152:O152)=0,\"\",SUM(K152:O152))","v":""}]
[null,null,"Crédits d'impôt remboursables (Canada ) à financer",null,null,null,null,null,null,null,{"$f":"IF(F31<200001,K146,K136)","v":""},null,{"$f":"IF(F31<200001,M146,M136)","v":""},null,null,""]
[null,null,"Total des crédits de l'année",null,null,null,null,null,null,null,{"$f":"IF(ISERROR(K152+K153),\"\",K152+K153)","v":""},null,{"$f":"IF(ISERROR(M152+M153),\"\",M152+M153)","v":""},null,null,""]
[null,null,"Prêt maximal à 75 %",null,null,null,null,null,null,null,{"$f":"IF(ISERROR(K154*0.75),\"\",K154*0.75)","v":""},null,{"$f":"IF(ISERROR(M154*0.75),\"\",M154*0.75)","v":""},null,null,""]
[null,null,null,"Montant financé par le dossier précédent no ",null,null,null,null,null,null,null,null,null,null,null,""]
[null,null,null,"Montant à financer par ce nouveau dossier no",null,null,null,null,null,null,{"$f":"IF(ISERROR(K155-K156),\"\",K155-K156)","v":""},null,{"$f":"IF(ISERROR(M155-M156),\"\",M155-M156)","v":""},null,null,""]
[null,null,"Portion financée (en %)",null,null,null,null,null,null,null,{"$f":"IF(ISERROR(IF((K154)>0,(K159/K154),0)),\"\",IF((K154)>0,(K159/K154),0))","v":""},null,{"$f":"IF(ISERROR(IF((M154)>0,(M159/M154),0)),\"\",IF((M154)>0,(M159/M154),0))","v":""},null,null,{"$f":"IF(ISERROR(IF((P154)>0,(P159/P154),0)),\"\",IF((P154)>0,(P159/P154),0))","v":""}]
[null,null,"Crédits financés (année courante, arrondis)",null,null,null,null,null,null,null,null,null,null,null,null,{"$f":"IF(SUM(K159:O159)=0,\"\",SUM(K159:O159))","v":""}]
[null,null,"1er certificat de garantie annuel (80 %)",null,null,null,null,null,null,null,{"$f":"IF(K159*0.8=0,\"\",K159*0.8)","v":""},null,{"$f":"IF(M159*0.8=0,\"\",M159*0.8)","v":""},null,null,{"$f":"IF(SUM(K160:O160)=0,\"\",SUM(K160:O160))","v":""}]
[]
[null,null,"5. FINANCEMENT"]
[]
[]
[null,null,null,null,null,null,null,null,null,"Exercice(s) terminé(s) le :",{"$f":"K151","v":""},null,{"$f":"M151","v":""},null,null,"Total"]
[null,null,"Mise de fonds",null,null,null,null,null,null,null,null,null,null,null,null,{"$f":"IF(SUM(K166:O166)=0,\"\",SUM(K166:O166))","v":""}]
[null,null,"Dettes à terme",null,null,null,null,null,null,null,null,null,null,null,null,{"$f":"IF(SUM(K167:O167)=0,\"\",SUM(K167:O167))","v":""}]
[null,null,"Subventions",null,null,null,null,null,null,null,null,null,null,null,null,""]
[null,null,"Fonds de roulement",null,null,null,null,null,null,null,null,null,null,null,null,""]
[null,null,"Autre (préciser) :",null,null,null,null,null,null,null,null,null,null,null,null,""]
[null,null,"Crédits d'impôt Québec",null,null,null,null,null,null,null,{"$f":"K152","v":""},null,{"$f":"M152","v":""},null,null,""]
[null,null,"Crédits d'impôt Canada",null,null,null,null,null,null,null,{"$f":"K153","v":""},null,{"$f":"M153","v":""},null,null,""]
[null,null,null,null,null,null,null,null,null,"Total :",{"$f":"IF(SUM(K166:K172)=0,\"\",SUM(K166:K172))","v":""},null,{"$f":"IF(SUM(M166:M172)=0,\"\",SUM(M166:M172))","v":""},null,null,{"$f":"SUM(P166:P172)","v":0}]

{"sheet":"Feuil1","index":5,"n_rows":8,"n_cols":2,"rows_kept":8,"cut":false,"hidden":true,"merged":[]}
[]
[]
[null,"Président"]
[null,"Vice-Président"]
[null,"Directeur"]
[null,"Superviseur"]
[null,"Contrôleur"]
[null,"Autre"]